{"text_format":"1","workbook":"xlsx","n_sheets":6,"sheets":["Notes","Summary","STP","Trusts","Sites","BS"],"not_rendered":{"charts":0,"images":0,"macros":1,"external_links":1,"defined_names":5,"comments":0,"pivot_tables":0},"unopened":[],"bounds":{"document_bytes":16777216,"sheet_cells":100000,"rows_first":2000,"rows_last":500,"rows_between":2000,"halvings":0,"cell_chars":16384,"cell_head_chars":4096},"cells_cut":0,"cells_raw":0,"read":"whole","date_system":"1900"}

{"sheet":"Notes","index":0,"n_rows":2,"n_cols":8,"rows_kept":2,"cut":false,"hidden":false,"merged":[[1,1,1,4]]}
[]
[null,"A&E Friends and Family Test (FFT) data - May 2022",null,null,null,null,null,"  Show data for:"]

{"sheet":"Summary","index":1,"n_rows":7,"n_cols":10,"rows_kept":7,"cut":false,"hidden":false,"merged":[[2,1,3,1],[2,4,2,5],[2,6,2,7],[2,8,2,9]]}
[]
[]
[null,"FFT","Number of organisations submitting","Total responses to date","Responses",null,"Percentage Positive",null,"Percentage Negative"]
[null,null,"2022-05-01","2022-05-01","2022-05-01","2022-04-26","2022-05-01","2022-04-26","2022-05-01","2022-04-26"]
[null,"A&E Total",122,12746413,116433,113879,0.75129044171325998,0.74925139841410615,0.1661814090506987,0.16940788029399625]
[null,"Acute Type 1&2","NA",12072759,109897,106848,0.74948360737781738,0.746153414195867,0.16722931472196692,0.17204814315663372]
[null,"WiCs & MIUs",20,673654,6536,7031,0.78167074663402691,0.79633053619684258,0.14856181150550796,0.12928459678566348]

{"sheet":"STP","index":2,"n_rows":48,"n_cols":12,"rows_kept":48,"cut":false,"hidden":false,"merged":[[2,6,2,11],[2,0,3,0],[2,1,3,1],[2,2,3,2],[2,3,3,3],[2,4,3,4],[2,5,3,5]]}
[]
[]
["STP Code","STP Name","Total Responses","Total Eligible","Percentage Positive","Percentage Negative","Breakdown of Responses"]
[null,null,null,null,null,null,"Very Good","Good","Neither Good nor Poor","Poor","Very Poor","Don't Know"]
[null,"England",116433,1196383,0.75129044171325998,0.1661814090506987,64668,22807,7982,7114,12235,1627]
[null,"Selection (excluding suppressed data)",{"$f":"SUBTOTAL(9,C7:C48)","v":116433},{"$f":"SUBTOTAL(9,D7:D48)","v":1196383},{"$f":"IFERROR((G6+H6)/C6, \"-\")","v":0.75129044171325998},{"$f":"IFERROR((J6+K6)/C6, \"-\")","v":0.1661814090506987},{"$f":"SUBTOTAL(9,G7:G48)","v":64668},22807,7982,7114,12235,1627]
["QE1","HEALTHIER LANCASHIRE AND SOUTH CUMBRIA",3555,27716,0.75555555555555554,0.15949367088607594,2059,627,276,227,340,26]
["QF7","SOUTH YORKSHIRE AND BASSETLAW STP",2190,43540,0.77808219178082194,0.14383561643835616,1305,399,141,123,192,30]
["QGH","HEREFORDSHIRE AND WORCESTERSHIRE STP",1615,17387,0.88235294117647056,8.1733746130030954E-2,1281,144,56,53,79,2]
["QH8","MID AND SOUTH ESSEX STP",3141,14186,0.72715695638331745,0.16587074180197389,1569,715,281,208,313,55]
["QHG","BEDFORDSHIRE, LUTON AND MILTON KEYNES STP",748,22718,0.77807486631016043,0.11497326203208556,363,219,70,41,45,10]
["QHL","BIRMINGHAM AND SOLIHULL STP",2800,22765,0.71107142857142858,0.20321428571428571,1444,547,190,195,374,50]
["QHM","CUMBRIA AND NORTH EAST STP",2617,80885,0.80320978219335115,0.12877340466182652,1589,513,163,130,207,15]
["QJ2","JOINED UP CARE DERBYSHIRE STP",2031,22361,0.73855243722304287,0.18069916297390448,1026,474,157,149,218,7]
["QJG","SUFFOLK AND NORTH EAST ESSEX ICS",3576,22677,0.80536912751677847,0.11772930648769575,2147,733,233,200,221,42]
["QJK","DEVON STP",421,33881,0.81472684085510694,0.12114014251781473,258,85,25,23,28,2]
["QJM","LINCOLNSHIRE STP",1546,8091,0.78007761966364808,0.13130659767141009,886,320,117,78,125,20]
["QK1","LEICESTER, LEICESTERSHIRE AND RUTLAND STP",2731,17530,0.78945441230318569,0.14793116074697912,1409,747,155,142,262,16]
["QKK","OUR HEALTHIER SOUTH EAST LONDON STP",3618,43928,0.71365395245992258,0.1804864566058596,1695,887,345,239,414,38]
["QKS","KENT AND MEDWAY STP",2306,38217,0.71465741543798789,0.19037294015611447,1175,473,188,149,290,31]
["QM7","HERTFORDSHIRE AND WEST ESSEX STP",1505,37051,0.67840531561461792,0.22657807308970099,688,333,137,124,217,6]
["QMF","EAST LONDON HEALTH & CARE PARTNERSHIP (STP)",3653,59436,0.59868601149739942,0.28606624692033944,1485,702,250,301,744,171]
["QMJ","NORTH LONDON PARTNERS IN HEALTH & CARE (STP)",8645,64012,0.7718912666281087,0.15558126084441873,5282,1391,467,404,941,160]
["QMM","NORFOLK AND WAVENEY HEALTH & CARE PARTNERSHIP (STP)",1255,18890,0.72828685258964143,0.17928286852589642,631,283,110,87,138,6]
["QNC","STAFFORDSHIRE & STOKE ON TRENT STP",1767,16030,0.73910582908885114,0.16694963214487832,923,383,160,103,192,6]
["QNQ","FRIMLEY HEALTH & CARE (STP)",1858,21914,0.70452099031216364,0.21151776103336922,896,413,151,131,262,5]
["QNX","SUSSEX HEALTH AND CARE PARTNERSHIP",3814,36934,0.77477713686418459,0.12952281069743052,2228,727,262,196,298,103]
["QOC","SHROPSHIRE AND TELFORD AND WREKIN STP",22,13685,0.86363636363636365,9.0909090909090912E-2,14,5,1,1,1,0]
["QOP","GREATER MANCHESTER HEALTH & SOCIAL CARE PARTNERSHIP",6840,67067,0.74722222222222223,0.18084795321637426,3858,1253,412,417,820,80]
["QOQ","HUMBER, COAST AND VALE STP",2675,26293,0.71214953271028036,0.18990654205607477,1333,572,219,210,298,43]
["QOX","BATH AND NORTH EAST SOMERSET, SWINDON AND WILTSHIRE STP",1158,15651,0.72107081174438692,0.18739205526770294,611,224,92,72,145,14]
["QPM","NORTHAMPTONSHIRE STP",1833,16923,0.75450081833060556,0.16475722858701583,1013,370,124,107,195,24]
["QR1","GLOUCESTERSHIRE STP",1059,6136,0.66855524079320117,0.22851746931067043,446,262,105,95,147,4]
["QRL","HAMPSHIRE AND THE ISLE OF WIGHT STP",3509,29369,0.8369905956112853,0.1048731832430892,2347,590,180,163,205,24]
["QRV","NORTH WEST LONDON HEALTH & CARE PARTNERSHIP (STP)",5809,45564,0.77999655706662074,0.15045618867274918,3414,1117,372,333,541,32]
["QSL","SOMERSET STP",136,19254,0.82352941176470584,9.5588235294117641E-2,96,16,11,10,3,0]
["QT1","NOTTINGHAM AND NOTTINGHAMSHIRE HEALTH AND CARE STP",1770,18868,0.88361581920903953,7.4576271186440682E-2,1248,316,72,48,84,2]
["QT6","CORNWALL AND THE ISLES OF SCILLY HEALTH & SOCIAL CARE PARTNERSHIP (STP)",888,6930,0.82319819819819817,0.10135135135135136,548,183,65,41,49,2]
["QU9","BUCKINGHAMSHIRE, OXFORDSHIRE AND BERKSHIRE WEST STP",2640,21974,0.72386363636363638,0.18068181818181819,1424,487,209,203,274,43]
["QUA","THE BLACK COUNTRY AND WEST BIRMINGHAM STP",5361,31248,0.68774482372691659,0.19903003171050176,2642,1045,392,348,719,215]
["QUE","CAMBRIDGESHIRE AND PETERBOROUGH STP",1192,11886,0.625,0.25,520,225,118,98,200,31]
["QUY","BRISTOL, NORTH SOMERSET AND SOUTH GLOUCESTERSHIRE STP",1770,19218,0.79604519774011295,0.1271186440677966,1071,338,114,72,153,22]
["QVV","DORSET STP",2363,12815,0.7879813796022006,0.13711383834109184,1373,489,138,124,200,39]
["QWE","SOUTH WEST LONDON HEALTH & CARE PARTNERSHIP (STP)",2843,21669,0.73232500879352791,0.18431234611326064,1459,623,207,229,295,30]
["QWO","WEST YORKSHIRE AND HARROGATE HEALTH & CARE PARTNERSHIP (STP)",6104,48938,0.7486893840104849,0.1761140235910878,3446,1124,412,418,657,47]
["QWU","COVENTRY AND WARWICKSHIRE STP",3851,23142,0.75486886522981045,0.1698260192157881,2115,792,249,234,420,41]
["QXU","SURREY HEARTLANDS HEALTH & CARE PARTNERSHIP (STP)",800,16972,0.82750000000000001,0.105,505,157,50,40,44,4]
["QYG","CHESHIRE AND MERSEYSIDE STP",8418,52632,0.75433594678070803,0.17023045854122118,4846,1504,506,548,885,129]

{"sheet":"Trusts","index":3,"n_rows":128,"n_cols":20,"rows_kept":128,"cut":false,"hidden":false,"merged":[[2,6,3,6],[2,7,2,12],[2,13,2,19],[2,0,3,0],[2,1,3,1],[2,2,3,2],[2,3,3,3],[2,4,3,4],[2,5,3,5]]}
[]
[]
["STP Code","Trust Code","Trust Name","Total Responses","Total Eligible","Percentage Positive","Percentage Negative","Breakdown of Responses",null,null,null,null,null,"Mode of Collection"]
[null,null,null,null,null,null,null,"Very Good","Good","Neither Good nor Poor","Poor","Very Poor","Don't Know","Mode SMS","Mode Electronic Discharge","Mode Paper Discharge","Mode Paper Home","Mode Telephone","Mode Online","Mode Other"]
[null,null,"England",116433,1196383,0.75129044171325998,0.1661814090506987,64668,22807,7982,7114,12235,1627,90862,1298,3694,753,7512,10889,1425]
[null,null,"Selection (excluding suppressed data)",{"$f":"SUBTOTAL(9,D7:D999)","v":116433},{"$f":"SUBTOTAL(9,E7:E999)","v":1196383},{"$f":"IFERROR((H6+I6)/D6, \"-\")","v":0.75054323087097297},{"$f":"IFERROR((K6+L6)/D6, \"-\")","v":0.1660096364432764},{"$f":"SUBTOTAL(9,H7:H999)","v":64607},{"$f":"SUBTOTAL(9,I7:I999)","v":22781},7974,7107,12222,1626,90862,1298,3589,753,7512,10878,1425]
["QE1","RXL","BLACKPOOL TEACHING HOSPITALS NHS FOUNDATION TRUST",286,4243,0.70979020979020979,0.19230769230769232,145,58,27,20,35,1,255,0,0,28,0,3,0]
["QE1","RXR","EAST LANCASHIRE HOSPITALS NHS TRUST",1020,10756,0.64509803921568631,0.25294117647058822,447,211,94,98,160,10,1003,0,15,0,0,2,0]
["QE1","RXN","LANCASHIRE TEACHING HOSPITALS NHS FOUNDATION TRUST",526,3998,0.75475285171102657,0.16730038022813687,301,96,40,42,46,1,468,0,19,0,36,3,0]
["QE1","RTX","UNIVERSITY HOSPITALS OF MORECAMBE BAY NHS FOUNDATION TRUST",1723,8719,0.82878699941961698,9.6343586767266398E-2,1166,262,115,67,99,14,1516,0,0,7,200,0,0]
["QF7","RFF","BARNSLEY HOSPITAL NHS FOUNDATION TRUST",360,8789,0.81944444444444442,0.11666666666666667,231,64,21,22,20,2,360,0,0,0,0,0,0]
["QF7","RP5","DONCASTER AND BASSETLAW TEACHING HOSPITALS NHS FOUNDATION TRUST",3,15242,"*","*","*","*","*","*","*","*","*","*","*","*","*","*","*"]
["QF7","RCU","SHEFFIELD CHILDREN'S NHS FOUNDATION TRUST",693,5724,0.76046176046176051,0.13419913419913421,395,132,64,40,53,9,0,0,0,0,690,3,0]
["QF7","RHQ","SHEFFIELD TEACHING HOSPITALS NHS FOUNDATION TRUST",1107,5620,0.78229448961156278,0.15266485998193316,670,196,54,57,112,18,1023,0,0,0,83,1,0]
["QF7","RFR","THE ROTHERHAM NHS FOUNDATION TRUST",27,8165,0.48148148148148145,0.40740740740740738,"*","*","*","*","*","*","*","*","*","*","*","*","*"]
["QGH","RWP","WORCESTERSHIRE ACUTE HOSPITALS NHS TRUST",1615,11364,0.88235294117647056,8.1733746130030954E-2,1281,144,56,53,79,2,1615,0,0,0,0,0,0]
["QGH","RLQ","WYE VALLEY NHS TRUST",0,6023,"NA","NA",0,0,0,0,0,0,0,0,0,0,0,0,0]
["QH8","RAJ","MID AND SOUTH ESSEX NHS FOUNDATION TRUST",3141,14186,0.72715695638331745,0.16587074180197389,1569,715,281,208,313,55,2794,0,0,0,343,4,0]
["QHG","RC9","BEDFORDSHIRE HOSPITALS NHS FOUNDATION TRUST",204,13977,0.86274509803921573,7.8431372549019607E-2,140,36,10,5,11,2,0,157,0,0,0,47,0]
["QHG","RD8","MILTON KEYNES UNIVERSITY HOSPITAL NHS FOUNDATION TRUST",544,8741,0.74632352941176472,0.12867647058823528,223,183,60,36,34,8,522,0,8,0,0,14,0]
["QHL","RQ3","BIRMINGHAM WOMEN'S AND CHILDREN'S NHS FOUNDATION TRUST",82,4178,0.92682926829268297,3.6585365853658534E-2,64,12,3,1,2,0,0,0,0,0,0,82,0]
["QHL","RRK","UNIVERSITY HOSPITALS BIRMINGHAM NHS FOUNDATION TRUST",2718,18587,0.70456217807211186,0.20824135393671817,1380,535,187,194,372,50,2718,0,0,0,0,0,0]
["QHM","RXP","COUNTY DURHAM AND DARLINGTON NHS FOUNDATION TRUST",27,4875,1,0,26,1,0,0,0,0,0,0,27,0,0,0,0]
["QHM","RR7","GATESHEAD HEALTH NHS FOUNDATION TRUST",225,7917,0.82222222222222219,0.12,141,44,11,6,21,2,221,0,4,0,0,0,0]
["QHM","RNN","NORTH CUMBRIA INTEGRATED CARE NHS FOUNDATION TRUST",545,6422,0.77614678899082568,0.15596330275229359,314,109,35,32,53,2,1,0,0,0,0,544,0]
["QHM","RVW","NORTH TEES AND HARTLEPOOL NHS FOUNDATION TRUST",65,3963,0.81538461538461537,0.15384615384615385,40,13,2,4,6,0,65,0,0,0,0,0,0]
["QHM","RTF","NORTHUMBRIA HEALTHCARE NHS FOUNDATION TRUST",945,15508,0.84126984126984128,9.735449735449736E-2,600,195,48,45,47,10,726,0,2,217,0,0,0]
["QHM","RTR","SOUTH TEES HOSPITALS NHS FOUNDATION TRUST",771,13323,0.77042801556420237,0.14396887159533073,447,147,65,41,70,1,771,0,0,0,0,0,0]
["QHM","R0B","SOUTH TYNESIDE AND SUNDERLAND NHS FOUNDATION TRUST",12,10974,0.41666666666666669,0.5,4,1,1,2,4,0,0,0,0,0,0,12,0]
["QHM","RTD","THE NEWCASTLE UPON TYNE HOSPITALS NHS FOUNDATION TRUST",27,17903,0.7407407407407407,0.22222222222222221,17,3,1,0,6,0,0,0,23,0,0,4,0]
["QJ2","RFS","CHESTERFIELD ROYAL HOSPITAL NHS FOUNDATION TRUST",584,6183,0.80650684931506844,0.12842465753424659,339,132,37,41,34,1,575,0,0,0,0,9,0]
["QJ2","RTG","UNIVERSITY HOSPITALS OF DERBY AND BURTON NHS FOUNDATION TRUST",1447,16178,0.71112646855563233,0.20179682100898411,687,342,120,108,184,6,1442,0,1,0,0,4,0]
["QJG","RDE","EAST SUFFOLK AND NORTH ESSEX NHS FOUNDATION TRUST",2673,17047,0.81481481481481477,0.11410400299289188,1683,495,151,141,164,39,2124,0,0,0,549,0,0]
["QJG","RGR","WEST SUFFOLK NHS FOUNDATION TRUST",903,5630,0.77740863787375414,0.12846068660022147,464,238,82,59,57,3,903,0,0,0,0,0,0]
["QJK","RH8","ROYAL DEVON UNIVERSITY HEALTHCARE NHS FOUNDATION TRUST",14,14602,1,0,13,1,0,0,0,0,0,0,12,0,0,2,0]
["QJK","RA9","TORBAY AND SOUTH DEVON NHS FOUNDATION TRUST",15,5291,0.93333333333333335,0,14,0,1,0,0,0,0,0,15,0,0,0,0]
["QJK","RK9","UNIVERSITY HOSPITALS PLYMOUTH NHS TRUST",392,13988,0.8035714285714286,0.13010204081632654,231,84,24,23,28,2,0,0,0,25,0,367,0]
["QJM","RWD","UNITED LINCOLNSHIRE HOSPITALS NHS TRUST",1546,8091,0.78007761966364808,0.13130659767141009,886,320,117,78,125,20,1083,0,0,0,360,103,0]
["QK1","RWE","UNIVERSITY HOSPITALS OF LEICESTER NHS TRUST",2731,17530,0.78945441230318569,0.14793116074697912,1409,747,155,142,262,16,1734,394,603,0,0,0,0]
["QKK","RJ1","GUY'S AND ST THOMAS' NHS FOUNDATION TRUST",1447,10895,0.78576364892881823,0.11126468555632343,776,361,131,67,94,18,1030,0,414,0,0,3,0]
["QKK","RJZ","KING'S COLLEGE HOSPITAL NHS FOUNDATION TRUST",785,10851,0.64713375796178341,0.23949044585987261,338,170,82,57,131,7,748,0,0,19,0,18,0]
["QKK","RJ2","LEWISHAM AND GREENWICH NHS TRUST",1386,22182,0.67604617604617601,0.21933621933621933,581,356,132,115,189,13,1378,0,0,0,0,8,0]
["QKS","RN7","DARTFORD AND GRAVESHAM NHS TRUST",31,5548,0.87096774193548387,9.6774193548387094E-2,26,1,1,1,2,0,0,26,0,0,0,5,0]
["QKS","RVV","EAST KENT HOSPITALS UNIVERSITY NHS FOUNDATION TRUST",1067,7090,0.7188378631677601,0.18837863167760074,555,212,99,69,132,0,1067,0,0,0,0,0,0]
["QKS","RWF","MAIDSTONE AND TUNBRIDGE WELLS NHS TRUST",83,17646,0.90361445783132532,6.0240963855421686E-2,53,22,3,4,1,0,0,0,76,0,0,7,0]
["QKS","RPA","MEDWAY NHS FOUNDATION TRUST",1125,7933,0.69244444444444442,0.20444444444444446,541,238,85,75,155,31,929,0,0,0,196,0,0]
["QM7","RWH","EAST AND NORTH HERTFORDSHIRE NHS TRUST",100,19952,0.9,0.06,69,21,3,3,3,1,0,0,81,0,18,1,0]
["QM7","RQW","THE PRINCESS ALEXANDRA HOSPITAL NHS TRUST",1342,8530,0.65573770491803274,0.2451564828614009,582,298,128,119,210,5,0,0,0,0,0,0,1342]
["QM7","RWG","WEST HERTFORDSHIRE TEACHING HOSPITALS NHS TRUST",63,8569,0.80952380952380953,9.5238095238095233E-2,37,14,6,2,4,0,0,63,0,0,0,0,0]
["QMF","RF4","BARKING, HAVERING AND REDBRIDGE UNIVERSITY HOSPITALS NHS TRUST",405,8646,0.42469135802469138,0.49382716049382713,122,50,30,57,143,3,342,0,41,0,0,22,0]
["QMF","R1H","BARTS HEALTH NHS TRUST",2972,39992,0.60800807537012114,0.2671601615074024,1220,587,204,218,576,167,2714,0,227,0,0,31,0]
["QMF","RQX","HOMERTON HEALTHCARE NHS FOUNDATION TRUST",276,10798,0.75362318840579712,0.18478260869565216,143,65,16,26,25,1,275,0,0,0,0,1,0]
["QMJ","RP6","MOORFIELDS EYE HOSPITAL NHS FOUNDATION TRUST",2502,6342,0.92126298960831332,3.3573141486810551E-2,1942,363,59,43,41,54,2502,0,0,0,0,0,0]
["QMJ","RAP","NORTH MIDDLESEX UNIVERSITY HOSPITAL NHS TRUST",2259,18831,0.58388667552014162,0.30677290836653387,897,422,195,193,500,52,1993,0,0,21,0,245,0]
["QMJ","RAL","ROYAL FREE LONDON NHS FOUNDATION TRUST",647,19401,0.73879443585780524,0.17310664605873261,367,111,41,25,87,16,539,83,0,0,0,25,0]
["QMJ","RRV","UNIVERSITY COLLEGE LONDON HOSPITALS NHS FOUNDATION TRUST",2341,11474,0.80991029474583509,0.12516018795386588,1572,324,119,89,204,33,2293,0,0,0,48,0,0]
["QMJ","RKE","WHITTINGTON HEALTH NHS TRUST",896,7964,0.7533482142857143,0.18191964285714285,504,171,53,54,109,5,891,0,5,0,0,0,0]
["QMM","RGP","JAMES PAGET UNIVERSITY HOSPITALS NHS FOUNDATION TRUST",44,5507,0.52272727272727271,0.40909090909090912,18,5,3,5,13,0,0,0,44,0,0,0,0]
["QMM","RM1","NORFOLK AND NORWICH UNIVERSITY HOSPITALS NHS FOUNDATION TRUST",886,8974,0.73024830699774268,0.17720090293453725,434,213,80,62,95,2,0,0,22,0,0,864,0]
["QMM","RCX","THE QUEEN ELIZABETH HOSPITAL, KING'S LYNN, NHS FOUNDATION TRUST",325,4409,0.75076923076923074,0.15384615384615385,179,65,27,20,30,4,0,0,0,26,0,299,0]
["QNC","RJE","UNIVERSITY HOSPITALS OF NORTH MIDLANDS NHS TRUST",1767,16030,0.73910582908885114,0.16694963214487832,923,383,160,103,192,6,1767,0,0,0,0,0,0]
["QNQ","RDU","FRIMLEY HEALTH NHS FOUNDATION TRUST",1858,21914,0.70452099031216364,0.21151776103336922,896,413,151,131,262,5,1759,0,0,99,0,0,0]
["QNX","RXC","EAST SUSSEX HEALTHCARE NHS TRUST",50,11410,0.8,0.12,28,12,0,4,2,4,0,0,50,0,0,0,0]
["QNX","RPC","QUEEN VICTORIA HOSPITAL NHS FOUNDATION TRUST",278,1264,0.96762589928057552,1.4388489208633094E-2,242,27,4,1,3,1,180,0,0,0,98,0,0]
["QNX","RYR","UNIVERSITY HOSPITALS SUSSEX NHS FOUNDATION TRUST",3486,24260,0.75903614457831325,0.13884107860011474,1958,688,258,191,293,98,3434,7,0,0,45,0,0]
["QOC","RXW","THE SHREWSBURY AND TELFORD HOSPITAL NHS TRUST",22,13685,0.86363636363636365,9.0909090909090912E-2,14,5,1,1,1,0,0,0,0,0,22,0,0]
["QOP","RMC","BOLTON NHS FOUNDATION TRUST",1244,9050,0.82556270096463025,0.12540192926045016,850,177,44,45,111,17,1188,10,0,46,0,0,0]
["QOP","R0A","MANCHESTER UNIVERSITY NHS FOUNDATION TRUST",2200,33997,0.70863636363636362,0.21545454545454545,1084,475,143,141,333,24,1900,1,293,0,0,6,0]
["QOP","RWJ","STOCKPORT NHS FOUNDATION TRUST",1302,7498,0.83102918586789554,9.8310291858678955E-2,831,251,77,49,79,15,985,0,89,0,228,0,0]
["QOP","RMP","TAMESIDE AND GLOSSOP INTEGRATED CARE NHS FOUNDATION TRUST",852,9177,0.68896713615023475,0.25704225352112675,471,116,46,65,154,0,0,0,37,0,0,815,0]
["QOP","RRF","WRIGHTINGTON, WIGAN AND LEIGH NHS FOUNDATION TRUST",1242,7345,0.68921095008051525,0.20933977455716588,622,234,102,117,143,24,920,0,53,0,267,2,0]
["QOQ","RCD","HARROGATE AND DISTRICT NHS FOUNDATION TRUST",441,3410,0.82766439909297052,8.8435374149659865E-2,236,129,33,27,12,4,0,0,0,0,441,0,0]
["QOQ","RWA","HULL UNIVERSITY TEACHING HOSPITALS NHS TRUST",1450,10540,0.65655172413793106,0.23379310344827586,689,263,122,114,225,37,1277,0,0,0,173,0,0]
["QOQ","RJL","NORTHERN LINCOLNSHIRE AND GOOLE NHS FOUNDATION TRUST",400,5594,0.72750000000000004,0.21,201,90,25,41,43,0,0,0,2,0,0,398,0]
["QOQ","RCB","YORK AND SCARBOROUGH TEACHING HOSPITALS NHS FOUNDATION TRUST",384,6749,0.7734375,0.11979166666666667,207,90,39,28,18,2,384,0,0,0,0,0,0]
["QOX","RN3","GREAT WESTERN HOSPITALS NHS FOUNDATION TRUST",1085,6023,0.71336405529953917,0.19262672811059908,568,206,88,69,140,14,1064,0,0,0,0,21,0]
["QOX","RD1","ROYAL UNITED HOSPITALS BATH NHS FOUNDATION TRUST",72,6596,0.84722222222222221,0.1111111111111111,"*","*","*","*","*","*","*","*","*","*","*","*","*"]
["QOX","RNZ","SALISBURY NHS FOUNDATION TRUST",1,3032,"*","*","*","*","*","*","*","*","*","*","*","*","*","*","*"]
["QPM","RNQ","KETTERING GENERAL HOSPITAL NHS FOUNDATION TRUST",365,7145,0.78082191780821919,0.15890410958904111,219,66,18,22,36,4,0,0,0,0,0,365,0]
["QPM","RNS","NORTHAMPTON GENERAL HOSPITAL NHS TRUST",1468,9778,0.74795640326975477,0.16621253405994552,794,304,106,85,159,20,1265,0,0,6,177,20,0]
["QR1","RTE","GLOUCESTERSHIRE HOSPITALS NHS FOUNDATION TRUST",1059,6136,0.66855524079320117,0.22851746931067043,446,262,105,95,147,4,978,0,0,0,73,8,0]
["QRL","RN5","HAMPSHIRE HOSPITALS NHS FOUNDATION TRUST",1595,8891,0.84075235109717872,9.843260188087774E-2,1056,285,87,77,80,10,1114,1,19,0,456,5,0]
["QRL","R1F","ISLE OF WIGHT NHS TRUST",10,3691,0.9,0,"*","*","*","*","*","*","*","*","*","*","*","*","*"]
["QRL","RHU","PORTSMOUTH HOSPITALS UNIVERSITY NATIONAL HEALTH SERVICE TRUST",1901,12158,0.83429773803261442,0.11046817464492373,1282,304,91,86,124,14,1901,0,0,0,0,0,0]
["QRL","RHM","UNIVERSITY HOSPITAL SOUTHAMPTON NHS FOUNDATION TRUST",3,4629,"*","*","*","*","*","*","*","*","*","*","*","*","*","*","*"]
["QRV","RQM","CHELSEA AND WESTMINSTER HOSPITAL NHS FOUNDATION TRUST",3088,15203,0.77946891191709844,0.14896373056994819,1833,574,197,173,287,24,2963,0,0,0,74,51,0]
["QRV","RYJ","IMPERIAL COLLEGE HEALTHCARE NHS TRUST",2100,17885,0.79761904761904767,0.14047619047619048,1254,421,124,107,188,6,26,0,62,0,0,2012,0]
["QRV","R1K","LONDON NORTH WEST UNIVERSITY HEALTHCARE NHS TRUST",65,6571,0.96923076923076923,3.0769230769230771E-2,58,5,0,1,1,0,1,0,0,61,0,2,1]
["QRV","RAS","THE HILLINGDON HOSPITALS NHS FOUNDATION TRUST",556,5905,0.69424460431654678,0.21043165467625899,269,117,51,52,65,2,0,0,0,0,0,556,0]
["QSL","RH5","SOMERSET NHS FOUNDATION TRUST",8,15374,0.75,0.25,5,1,0,1,1,0,0,0,7,0,0,1,0]
["QSL","RA4","YEOVIL DISTRICT HOSPITAL NHS FOUNDATION TRUST",128,3880,0.828125,8.59375E-2,91,15,11,9,2,0,0,68,58,2,0,0,0]
["QT1","RX1","NOTTINGHAM UNIVERSITY HOSPITALS NHS TRUST",131,10275,0.73282442748091603,0.19847328244274809,78,18,8,4,22,1,0,35,0,84,0,12,0]
["QT1","RK5","SHERWOOD FOREST HOSPITALS NHS FOUNDATION TRUST",1639,8593,0.89566809029896277,6.4673581452104945E-2,1170,298,64,44,62,1,0,0,680,0,0,959,0]
["QT6","REF","ROYAL CORNWALL HOSPITALS NHS TRUST",888,6930,0.82319819819819817,0.10135135135135136,548,183,65,41,49,2,759,126,0,0,0,3,0]
["QU9","RXQ","BUCKINGHAMSHIRE HEALTHCARE NHS TRUST",633,2702,0.65718799368088465,0.2527646129541864,286,130,47,71,89,10,593,0,0,0,40,0,0]
["QU9","RTH","OXFORD UNIVERSITY HOSPITALS NHS FOUNDATION TRUST",1936,7726,0.73657024793388426,0.16322314049586778,1071,355,161,131,185,33,1894,0,0,0,0,42,0]
["QU9","RHW","ROYAL BERKSHIRE NHS FOUNDATION TRUST",71,11546,0.971830985915493,1.4084507042253521E-2,67,2,1,1,0,0,0,0,71,0,0,0,0]
["QUA","RXK","SANDWELL AND WEST BIRMINGHAM HOSPITALS NHS TRUST",1339,11306,0.60119492158327115,0.27184466019417475,547,258,115,95,269,55,1256,0,0,0,83,0,0]
["QUA","RNA","THE DUDLEY GROUP NHS FOUNDATION TRUST",1285,4330,0.70505836575875491,0.14708171206225681,678,228,79,78,111,111,1248,0,30,0,0,7,0]
["QUA","RL4","THE ROYAL WOLVERHAMPTON NHS TRUST",2089,12020,0.71421732886548583,0.19818094782192436,1085,407,144,139,275,39,1400,0,0,0,685,4,0]
["QUA","RBK","WALSALL HEALTHCARE NHS TRUST",648,3592,0.74691358024691357,0.15432098765432098,332,152,54,36,64,10,280,0,0,0,368,0,0]
["QUE","RGN","NORTH WEST ANGLIA NHS FOUNDATION TRUST",1192,11886,0.625,0.25,520,225,118,98,200,31,1152,0,0,32,0,8,0]
["QUY","RVJ","NORTH BRISTOL NHS TRUST",1166,6064,0.774442538593482,0.14322469982847341,683,220,75,48,119,21,930,0,0,0,236,0,0]
["QUY","RA7","UNIVERSITY HOSPITALS BRISTOL AND WESTON NHS FOUNDATION TRUST",604,13154,0.83774834437086088,9.602649006622517E-2,388,118,39,24,34,1,495,0,109,0,0,0,0]
["QVV","RBD","DORSET COUNTY HOSPITAL NHS FOUNDATION TRUST",994,2736,0.8048289738430584,0.12676056338028169,617,183,54,46,80,14,985,0,0,0,9,0,0]
["QVV","R0D","UNIVERSITY HOSPITALS DORSET NHS FOUNDATION TRUST",1369,10079,0.77574872169466769,0.14463111760409059,756,306,84,78,120,25,1280,0,0,75,0,14,0]
["QWE","RVR","EPSOM AND ST HELIER UNIVERSITY HOSPITALS NHS TRUST",1420,11237,0.78239436619718306,0.14225352112676057,833,278,86,93,109,21,1311,17,0,5,87,0,0]
["QWE","RAX","KINGSTON HOSPITAL NHS FOUNDATION TRUST",0,0,"NA","NA",0,0,0,0,0,0,0,0,0,0,0,0,0]
["QWE","RJ7","ST GEORGE'S UNIVERSITY HOSPITALS NHS FOUNDATION TRUST",1423,10432,0.68236120871398454,0.22628250175685172,626,345,121,136,186,9,0,0,0,0,0,1423,0]
["QWO","RCF","AIREDALE NHS FOUNDATION TRUST",566,3013,0.81095406360424027,0.12367491166077739,348,111,32,25,45,5,558,0,0,0,0,8,0]
["QWO","RAE","BRADFORD TEACHING HOSPITALS NHS FOUNDATION TRUST",848,7085,0.70400943396226412,0.20165094339622641,407,190,77,66,105,3,4,0,0,0,0,844,0]
["QWO","RWY","CALDERDALE AND HUDDERSFIELD NHS FOUNDATION TRUST",477,12479,0.81341719077568131,0.13836477987421383,319,69,16,24,42,7,244,0,0,0,0,233,0]
["QWO","RR8","LEEDS TEACHING HOSPITALS NHS TRUST",2841,14513,0.74938401971136925,0.17282646955297432,1607,522,191,190,301,30,2108,308,50,0,363,12,0]
["QWO","RXF","MID YORKSHIRE HOSPITALS NHS TRUST",1372,11848,0.72667638483965014,0.20189504373177841,765,232,96,113,164,2,1052,0,277,0,0,43,0]
["QWU","RLT","GEORGE ELIOT HOSPITAL NHS TRUST",1981,4775,0.77637556789500251,0.14840989399293286,1087,451,136,115,179,13,1962,0,0,0,19,0,0]
["QWU","RJC","SOUTH WARWICKSHIRE NHS FOUNDATION TRUST",251,4136,0.77689243027888444,0.16733067729083664,142,53,14,22,20,0,0,0,0,0,0,251,0]
["QWU","RKB","UNIVERSITY HOSPITALS COVENTRY AND WARWICKSHIRE NHS TRUST",1619,14231,0.72513897467572574,0.19641754169240272,886,288,99,97,221,28,1499,0,0,0,109,11,0]
["QXU","RTK","ASHFORD AND ST PETER'S HOSPITALS NHS FOUNDATION TRUST",136,10564,0.83823529411764708,8.8235294117647065E-2,79,35,7,5,7,3,136,0,0,0,0,0,0]
["QXU","RTP","SURREY AND SUSSEX HEALTHCARE NHS TRUST",664,6408,0.82530120481927716,0.10843373493975904,426,122,43,35,37,1,618,0,42,0,3,1,0]
["QYG","RBS","ALDER HEY CHILDREN'S NHS FOUNDATION TRUST",332,6033,0.59638554216867468,0.30722891566265059,138,60,32,37,65,0,330,2,0,0,0,0,0]
["QYG","RJN","EAST CHESHIRE NHS TRUST",757,3219,0.76882430647291944,0.13870541611624834,443,139,55,41,64,15,663,0,0,0,94,0,0]
["QYG","REM","LIVERPOOL UNIVERSITY HOSPITALS NHS FOUNDATION TRUST",1757,10177,0.66704610130904951,0.24018212862834376,862,310,112,121,301,51,1645,0,0,0,112,0,0]
["QYG","REP","LIVERPOOL WOMEN'S NHS FOUNDATION TRUST",82,1129,0.85365853658536583,8.5365853658536592E-2,58,12,4,3,4,1,0,0,0,0,0,0,82]
["QYG","RBT","MID CHESHIRE HOSPITALS NHS FOUNDATION TRUST",1077,8015,0.84215413184772514,9.8421541318477246E-2,735,172,53,53,53,11,990,0,0,0,87,0,0]
["QYG","RVY","SOUTHPORT AND ORMSKIRK HOSPITAL NHS TRUST",1110,4839,0.85045045045045042,0.12702702702702703,746,198,24,72,69,1,1003,0,0,0,104,3,0]
["QYG","RBN","ST HELENS AND KNOWSLEY TEACHING HOSPITALS NHS TRUST",720,4840,0.81666666666666665,0.1125,451,137,40,47,34,11,651,0,0,0,69,0,0]
["QYG","RWW","WARRINGTON AND HALTON TEACHING HOSPITALS NHS FOUNDATION TRUST",1832,9420,0.72489082969432317,0.18831877729257643,995,333,129,127,218,30,1438,0,21,0,368,5,0]
["QYG","RBL","WIRRAL UNIVERSITY TEACHING HOSPITAL NHS FOUNDATION TRUST",751,4960,0.74700399467376832,0.16511318242343542,418,143,57,47,77,9,652,0,0,0,99,0,0]

{"sheet":"Sites","index":4,"n_rows":232,"n_cols":15,"rows_kept":232,"cut":false,"hidden":false,"merged":[[2,6,3,6],[2,7,3,7],[2,8,3,8],[2,9,2,14],[2,0,3,0],[2,1,3,1],[2,2,3,2],[2,3,3,3],[2,4,3,4],[2,5,3,5]]}
[]
[]
["STP Code","Trust Code","Trust Name","Site Code","Site Name","Total Responses","Total Eligible","Percentage Positive","Percentage Negative","Breakdown of Responses"]
[null,null,null,null,null,null,null,null,null,"Very Good","Good","Neither Good nor Poor","Poor","Very Poor","Don't Know"]
[null,null,null,null,"England",116433,1196383,0.75129044171325998,0.1661814090506987,64668,22807,7982,7114,12235,1627]
[null,null,null,null,"Selection (excluding suppressed data)",{"$f":"SUBTOTAL(9,F7:F999)","v":116433},{"$f":"SUBTOTAL(9,G7:G999)","v":1196383},{"$f":"IFERROR((J6+K6)/F6, \"-\")","v":0.74952118385681032},{"$f":"IFERROR((M6+N6)/F6, \"-\")","v":0.16583786383585411},{"$f":"SUBTOTAL(9,J7:J999)","v":64521},22748,7967,7097,12212,1622]
["QE1","RXL","BLACKPOOL TEACHING HOSPITALS NHS FOUNDATION TRUST","RXL01","Blackpool Victoria Hospital - RXL01",286,4243,0.70979020979020979,0.19230769230769232,145,58,27,20,35,1]
["QE1","RXR","EAST LANCASHIRE HOSPITALS NHS TRUST","RXR20","Royal Blackburn Hospital - RXR20",1020,10756,0.64509803921568631,0.25294117647058822,447,211,94,98,160,10]
["QE1","RXN","LANCASHIRE TEACHING HOSPITALS NHS FOUNDATION TRUST","RXN01","Chorley and South Ribble Hospital - RXN01",244,1425,0.90163934426229508,4.9180327868852458E-2,183,37,11,7,5,1]
["QE1","RXN","LANCASHIRE TEACHING HOSPITALS NHS FOUNDATION TRUST","RXN02","Royal Preston Hospital - RXN02",282,2573,0.62765957446808507,0.26950354609929078,118,59,29,35,41,0]
["QE1","RTX","UNIVERSITY HOSPITALS OF MORECAMBE BAY NHS FOUNDATION TRUST","RTXBU","Furness General Hospital - RTXBU",516,2758,0.79651162790697672,0.12403100775193798,329,82,36,27,37,5]
["QE1","RTX","UNIVERSITY HOSPITALS OF MORECAMBE BAY NHS FOUNDATION TRUST","RTX02","Royal Lancaster Infirmary - RTX02",658,3816,0.74924012158054709,0.14133738601823709,377,116,65,37,56,7]
["QE1","RTX","UNIVERSITY HOSPITALS OF MORECAMBE BAY NHS FOUNDATION TRUST","RTXBW","Westmorland General Hospital - RTXBW",549,2145,0.95446265938069219,1.6393442622950821E-2,460,64,14,3,6,2]
["QF7","RFF","BARNSLEY HOSPITAL NHS FOUNDATION TRUST","RFFAA","Barnsley Hospital NHS Foundation Trust HQ - RFFAA",360,8789,0.81944444444444442,0.11666666666666667,231,64,21,22,20,2]
["QF7","RP5","DONCASTER AND BASSETLAW TEACHING HOSPITALS NHS FOUNDATION TRUST","RP5BA","Bassetlaw Hospital - RP5BA",3,4632,"*","*","*","*","*","*","*","*"]
["QF7","RP5","DONCASTER AND BASSETLAW TEACHING HOSPITALS NHS FOUNDATION TRUST","RP5DR","Doncaster Royal Infirmary - RP5DR",0,8802,"NA","NA",0,0,0,0,0,0]
["QF7","RP5","DONCASTER AND BASSETLAW TEACHING HOSPITALS NHS FOUNDATION TRUST","RP5MM","Montagu Hospital - RP5MM",0,1808,"NA","NA",0,0,0,0,0,0]
["QF7","RCU","SHEFFIELD CHILDREN'S NHS FOUNDATION TRUST","RCUEF","Sheffield Children's Hospital - RCUEF",693,5724,0.76046176046176051,0.13419913419913421,395,132,64,40,53,9]
["QF7","RHQ","SHEFFIELD TEACHING HOSPITALS NHS FOUNDATION TRUST","RHQNG","Northern General Hospital - RHQNG",670,3501,0.70597014925373136,0.20447761194029851,336,137,43,45,92,17]
["QF7","RHQ","SHEFFIELD TEACHING HOSPITALS NHS FOUNDATION TRUST","RHQHH","Royal Hallamshire Hospital - RHQHH",135,899,0.96296296296296291,3.7037037037037035E-2,118,12,0,0,5,0]
["QF7","RHQ","SHEFFIELD TEACHING HOSPITALS NHS FOUNDATION TRUST","RHQXXX","WiC_MIU - RHQXXX",302,1220,0.87086092715231789,8.9403973509933773E-2,216,47,11,12,15,1]
["QF7","RFR","THE ROTHERHAM NHS FOUNDATION TRUST","RFRPA","Rotherham District General Hospital - RFRPA",27,8165,0.48148148148148145,0.40740740740740738,"*","*","*","*","*","*"]
["QGH","RWP","WORCESTERSHIRE ACUTE HOSPITALS NHS TRUST","RWP01","Alexandra Hospital - RWP01",645,4357,0.90077519379844961,7.2868217054263565E-2,527,54,16,20,27,1]
["QGH","RWP","WORCESTERSHIRE ACUTE HOSPITALS NHS TRUST","RWP31","Kidderminster Hospital - RWP31",195,1920,0.96923076923076923,2.564102564102564E-2,176,13,1,3,2,0]
["QGH","RWP","WORCESTERSHIRE ACUTE HOSPITALS NHS TRUST","RWP50","Worcestershire Royal Hospital - RWP50",775,5087,0.84516129032258069,0.1032258064516129,578,77,39,30,50,1]
["QGH","RLQ","WYE VALLEY NHS TRUST","RLQ01","Hereford County Hospital - RLQ01",0,6023,"NA","NA",0,0,0,0,0,0]
["QH8","RAJ","MID AND SOUTH ESSEX NHS FOUNDATION TRUST","RAJ12","Basildon Hospital - RAJ12",1087,5396,0.6476540938362465,0.21711131554737811,424,280,125,83,153,22]
["QH8","RAJ","MID AND SOUTH ESSEX NHS FOUNDATION TRUST","RAJ32","Mid Essex Hospital - RAJ32",1184,4736,0.8057432432432432,0.11148648648648649,709,245,82,63,69,16]
["QH8","RAJ","MID AND SOUTH ESSEX NHS FOUNDATION TRUST","RAJ01","Southend Hospital - RAJ01",870,4054,0.7195402298850575,0.17586206896551723,436,190,74,62,91,17]
["QHG","RC9","BEDFORDSHIRE HOSPITALS NHS FOUNDATION TRUST","RC979","Bedford Hospital South Wing - RC979",28,4090,0.4642857142857143,0.4642857142857143,12,1,2,4,9,0]
["QHG","RC9","BEDFORDSHIRE HOSPITALS NHS FOUNDATION TRUST","RC971","Luton and Dunstable Hospital - RC971",176,9887,0.92613636363636365,1.7045454545454544E-2,128,35,8,1,2,2]
["QHG","RD8","MILTON KEYNES UNIVERSITY HOSPITAL NHS FOUNDATION TRUST","RD816","Milton Keynes Hospital - RD816",544,8741,0.74632352941176472,0.12867647058823528,223,183,60,36,34,8]
["QHL","RQ3","BIRMINGHAM WOMEN'S AND CHILDREN'S NHS FOUNDATION TRUST","RQ301","Birmingham Children's Hospital - RQ301",82,4178,0.92682926829268297,3.6585365853658534E-2,64,12,3,1,2,0]
["QHL","RRK","UNIVERSITY HOSPITALS BIRMINGHAM NHS FOUNDATION TRUST","RRK98","Good Hope Hospital - RRK98",900,5486,0.79777777777777781,0.14555555555555555,556,162,47,56,75,4]
["QHL","RRK","UNIVERSITY HOSPITALS BIRMINGHAM NHS FOUNDATION TRUST","RRK97","Heartlands Hospital - RRK97",830,7340,0.6506024096385542,0.23373493975903614,372,168,77,58,136,19]
["QHL","RRK","UNIVERSITY HOSPITALS BIRMINGHAM NHS FOUNDATION TRUST","RRK15","Queen Elizabeth Hospital Birmingham - RRK15",988,5761,0.66497975708502022,0.24392712550607287,452,205,63,80,161,27]
["QHM","RXP","COUNTY DURHAM AND DARLINGTON NHS FOUNDATION TRUST","RXPXXX","WiC_MIU - RXPXXX",27,4875,1,0,26,1,0,0,0,0]
["QHM","RR7","GATESHEAD HEALTH NHS FOUNDATION TRUST","RR7EN","Queen Elizabeth Hospital - RR7EN",178,6491,0.7921348314606742,0.14606741573033707,104,37,10,5,21,1]
["QHM","RR7","GATESHEAD HEALTH NHS FOUNDATION TRUST","RR7XXX","WiC_MIU - RR7XXX",47,1426,0.93617021276595747,2.1276595744680851E-2,37,7,1,1,0,1]
["QHM","RNN","NORTH CUMBRIA INTEGRATED CARE NHS FOUNDATION TRUST","RNN62","Cumberland Infirmary - RNN62",318,3716,0.74213836477987416,0.1761006289308176,165,71,24,19,37,2]
["QHM","RNN","NORTH CUMBRIA INTEGRATED CARE NHS FOUNDATION TRUST","RNNBX","West Cumberland Hospital - RNNBX",227,2706,0.82378854625550657,0.1277533039647577,149,38,11,13,16,0]
["QHM","RVW","NORTH TEES AND HARTLEPOOL NHS FOUNDATION TRUST","RVWAE","University Hospital Of North Tees - RVWAE",65,3963,0.81538461538461537,0.15384615384615385,40,13,2,4,6,0]
["QHM","RTF","NORTHUMBRIA HEALTHCARE NHS FOUNDATION TRUST","RTF86","The Northumbria - RTF86",339,4707,0.81710914454277284,0.11799410029498525,211,66,20,24,16,2]
["QHM","RTF","NORTHUMBRIA HEALTHCARE NHS FOUNDATION TRUST","RTFXXX","WiC_MIU - RTFXXX",606,10801,0.8547854785478548,8.5808580858085806E-2,389,129,28,21,31,8]
["QHM","RTR","SOUTH TEES HOSPITALS NHS FOUNDATION TRUST","RTR45","Friarage Hospital Site - RTR45",160,2161,0.9,5.6250000000000001E-2,117,27,7,5,4,0]
["QHM","RTR","SOUTH TEES HOSPITALS NHS FOUNDATION TRUST","RTRAT","The James Cook University Hospital - RTRAT",419,8168,0.71599045346062051,0.18854415274463007,214,86,39,26,53,1]
["QHM","RTR","SOUTH TEES HOSPITALS NHS FOUNDATION TRUST","RTRXXX","WiC_MIU - RTRXXX",192,2994,0.78125,0.11979166666666667,116,34,19,10,13,0]
["QHM","R0B","SOUTH TYNESIDE AND SUNDERLAND NHS FOUNDATION TRUST","R0B0Q","South Tyneside District Hospital - R0B0Q",5,4367,0.4,0.4,2,0,1,0,2,0]
["QHM","R0B","SOUTH TYNESIDE AND SUNDERLAND NHS FOUNDATION TRUST","R0B0X","Sunderland Eye Infirmary – R0B0X",4,1435,"*","*","*","*","*","*","*","*"]
["QHM","R0B","SOUTH TYNESIDE AND SUNDERLAND NHS FOUNDATION TRUST","R0B01","Sunderland Royal Hospital – R0B01",3,5172,"*","*","*","*","*","*","*","*"]
["QHM","RTD","THE NEWCASTLE UPON TYNE HOSPITALS NHS FOUNDATION TRUST","RTD02","The Royal Victoria Infirmary - RTD02",27,17903,0.7407407407407407,0.22222222222222221,17,3,1,0,6,0]
["QJ2","RFS","CHESTERFIELD ROYAL HOSPITAL NHS FOUNDATION TRUST","RFSDA","Chesterfield Royal Hospital - RFSDA",584,6183,0.80650684931506844,0.12842465753424659,339,132,37,41,34,1]
["QJ2","RTG","UNIVERSITY HOSPITALS OF DERBY AND BURTON NHS FOUNDATION TRUST","RTG02","Queen's Hospital, Burton Upon Trent - RTG02",268,4116,0.72761194029850751,0.16791044776119404,119,76,28,13,32,0]
["QJ2","RTG","UNIVERSITY HOSPITALS OF DERBY AND BURTON NHS FOUNDATION TRUST","RTGFG","Royal Derby Hospital - RTGFG",920,7399,0.65760869565217395,0.24782608695652175,376,229,82,87,141,5]
["QJ2","RTG","UNIVERSITY HOSPITALS OF DERBY AND BURTON NHS FOUNDATION TRUST","RTG54","Samuel Johnson - RTG54",151,2445,0.90066225165562919,7.9470198675496692E-2,119,17,3,3,9,0]
["QJ2","RTG","UNIVERSITY HOSPITALS OF DERBY AND BURTON NHS FOUNDATION TRUST","RTG50","Sir Robert Peel - RTG50",108,2218,0.86111111111111116,6.4814814814814811E-2,73,20,7,5,2,1]
["QJG","RDE","EAST SUFFOLK AND NORTH ESSEX NHS FOUNDATION TRUST","RDEE2","Clacton and District Hospital - RDEE2",430,3461,0.91627906976744189,5.3488372093023255E-2,341,53,12,12,11,1]
["QJG","RDE","EAST SUFFOLK AND NORTH ESSEX NHS FOUNDATION TRUST","RDEE4","Colchester General Hospital - RDEE4",665,3756,0.79548872180451125,0.11879699248120301,399,130,43,36,43,14]
["QJG","RDE","EAST SUFFOLK AND NORTH ESSEX NHS FOUNDATION TRUST","RDE03","Ipswich Hospital - RDE03",742,4104,0.80458221024258758,0.12129380053908356,437,160,43,41,49,12]
["QJG","RDE","EAST SUFFOLK AND NORTH ESSEX NHS FOUNDATION TRUST","RDEEE","The Fryatt Hospital and Mayflower Medical Centre - RDEEE",8,410,1,0,7,1,0,0,0,0]
["QJG","RDE","EAST SUFFOLK AND NORTH ESSEX NHS FOUNDATION TRUST","RDE81","UTC-Colechester - RDE81",828,5316,0.78502415458937203,0.13647342995169082,499,151,53,52,61,12]
["QJG","RGR","WEST SUFFOLK NHS FOUNDATION TRUST","RGR50","West Suffolk Hospital - RGR50",903,5630,0.77740863787375414,0.12846068660022147,464,238,82,59,57,3]
["QJK","RH8","ROYAL DEVON UNIVERSITY HEALTHCARE NHS FOUNDATION TRUST","RH880","North Devon District Hospital - RH880",14,3177,1,0,13,1,0,0,0,0]
["QJK","RH8","ROYAL DEVON UNIVERSITY HEALTHCARE NHS FOUNDATION TRUST","RH801","Royal Devon and Exeter Hospital (Wonford) - RH801",0,8250,"NA","NA",0,0,0,0,0,0]
["QJK","RH8","ROYAL DEVON UNIVERSITY HEALTHCARE NHS FOUNDATION TRUST","RH8XXX","WiC_MIU - RH8XXX",0,3175,"NA","NA",0,0,0,0,0,0]
["QJK","RA9","TORBAY AND SOUTH DEVON NHS FOUNDATION TRUST","RA901","Torbay Hospital - RA901",15,5291,0.93333333333333335,0,14,0,1,0,0,0]
["QJK","RK9","UNIVERSITY HOSPITALS PLYMOUTH NHS TRUST","RK950","Derriford Hospital - RK950",295,9661,0.77627118644067794,0.14915254237288136,158,71,20,19,25,2]
["QJK","RK9","UNIVERSITY HOSPITALS PLYMOUTH NHS TRUST","RK9XXX","WiC_MIU - RK9XXX",97,4327,0.88659793814432986,7.2164948453608241E-2,73,13,4,4,3,0]
["QJM","RWD","UNITED LINCOLNSHIRE HOSPITALS NHS TRUST","RWDLP","Grantham and District Hospital - RWDLP",378,2024,0.86243386243386244,7.1428571428571425E-2,248,78,23,9,18,2]
["QJM","RWD","UNITED LINCOLNSHIRE HOSPITALS NHS TRUST","RWDDA","Lincoln County Hospital - RWDDA",666,3059,0.75375375375375375,0.15015015015015015,367,135,54,40,60,10]
["QJM","RWD","UNITED LINCOLNSHIRE HOSPITALS NHS TRUST","RWDLA","Pilgrim Hospital - RWDLA",502,3008,0.75298804780876494,0.15139442231075698,271,107,40,29,47,8]
["QK1","RWE","UNIVERSITY HOSPITALS OF LEICESTER NHS TRUST","RWEAA","Leicester Royal Infirmary - RWEAA",2731,17530,0.78945441230318569,0.14793116074697912,1409,747,155,142,262,16]
["QKK","RJ1","GUY'S AND ST THOMAS' NHS FOUNDATION TRUST","RJ122","St Thomas' Hospital - RJ122",1199,8772,0.76980817347789821,0.11843202668890743,613,310,116,60,82,18]
["QKK","RJ1","GUY'S AND ST THOMAS' NHS FOUNDATION TRUST","RJ1XXX","WiC_MIU - RJ1XXX",248,2123,0.86290322580645162,7.6612903225806453E-2,163,51,15,7,12,0]
["QKK","RJZ","KING'S COLLEGE HOSPITAL NHS FOUNDATION TRUST","RJZ01","King's College Hospital (Denmark Hill) - RJZ01",427,7030,0.63466042154566749,0.25058548009367682,189,82,45,27,80,4]
["QKK","RJZ","KING'S COLLEGE HOSPITAL NHS FOUNDATION TRUST","RJZ30","Princess Royal University Hospital - RJZ30",358,3821,0.66201117318435754,0.22625698324022347,149,88,37,30,51,3]
["QKK","RJ2","LEWISHAM AND GREENWICH NHS TRUST","RJ231","Queen Elizabeth Hospital - RJ231",557,9429,0.63554757630161585,0.25673249551166966,217,137,56,51,92,4]
["QKK","RJ2","LEWISHAM AND GREENWICH NHS TRUST","RJ224","University Hospital Lewisham - RJ224",829,12753,0.70325693606755124,0.19420989143546441,364,219,76,64,97,9]
["QKS","RN7","DARTFORD AND GRAVESHAM NHS TRUST","RN707","Darent Valley Hospital - RN707",31,5548,0.87096774193548387,9.6774193548387094E-2,26,1,1,1,2,0]
["QKS","RVV","EAST KENT HOSPITALS UNIVERSITY NHS FOUNDATION TRUST","RVVKC","Kent and Canterbury Hospital - RVVKC",587,3901,0.71890971039182283,0.19420783645655879,305,117,51,37,77,0]
["QKS","RVV","EAST KENT HOSPITALS UNIVERSITY NHS FOUNDATION TRUST","RVV09","Queen Elizabeth The Queen Mother Hospital - RVV09",480,3189,0.71875,0.18124999999999999,250,95,48,32,55,0]
["QKS","RWF","MAIDSTONE AND TUNBRIDGE WELLS NHS TRUST","RWF03","Maidstone District General Hospital - RWF03",78,8557,0.89743589743589747,6.4102564102564097E-2,50,20,3,4,1,0]
["QKS","RWF","MAIDSTONE AND TUNBRIDGE WELLS NHS TRUST","RWFTW","The Tunbridge Wells Hospital - RWFTW",5,9089,1,0,3,2,0,0,0,0]
["QKS","RWF","MAIDSTONE AND TUNBRIDGE WELLS NHS TRUST","RWFXXX","WiC_MIU - RWFXXX",0,0,"NA","NA",0,0,0,0,0,0]
["QKS","RPA","MEDWAY NHS FOUNDATION TRUST","RPA02","Medway Maritime Hospital - RPA02",1125,7933,0.69244444444444442,0.20444444444444446,541,238,85,75,155,31]
["QM7","RWH","EAST AND NORTH HERTFORDSHIRE NHS TRUST","RWH01","Lister Hospital - RWH01",82,12585,0.8902439024390244,6.097560975609756E-2,54,19,3,2,3,1]
["QM7","RWH","EAST AND NORTH HERTFORDSHIRE NHS TRUST","RWH20","Queen Elizabeth I I Hospital - RWH20",18,7367,0.94444444444444442,5.5555555555555552E-2,15,2,0,1,0,0]
["QM7","RQW","THE PRINCESS ALEXANDRA HOSPITAL NHS TRUST","RQWG0","Princess Alexandra Hospital - RQWG0",1342,8530,0.65573770491803274,0.2451564828614009,582,298,128,119,210,5]
["QM7","RWG","WEST HERTFORDSHIRE TEACHING HOSPITALS NHS TRUST","RWG08","Hemel Hempstead Hospital - RWG08",2,3980,"*","*","*","*","*","*","*","*"]
["QM7","RWG","WEST HERTFORDSHIRE TEACHING HOSPITALS NHS TRUST","RWG02","Watford General Hospital - RWG02",61,4589,0.80327868852459017,9.8360655737704916E-2,"*","*","*","*","*","*"]
["QMF","RF4","BARKING, HAVERING AND REDBRIDGE UNIVERSITY HOSPITALS NHS TRUST","RF4DG","King George Hospital - RF4DG",128,3010,0.390625,0.5703125,28,22,5,14,59,0]
["QMF","RF4","BARKING, HAVERING AND REDBRIDGE UNIVERSITY HOSPITALS NHS TRUST","RF4QH","Queen's Hospital - RF4QH",277,5636,0.44043321299638988,0.4584837545126354,94,28,25,43,84,3]
["QMF","R1H","BARTS HEALTH NHS TRUST","R1HNH","Newham General Hospital - R1HNH",345,5675,0.58840579710144925,0.31304347826086959,138,65,18,31,77,16]
["QMF","R1H","BARTS HEALTH NHS TRUST","R1HM0","St Bartholomew's Hospital - R1HM0",0,0,"NA","NA",0,0,0,0,0,0]
["QMF","R1H","BARTS HEALTH NHS TRUST","R1H12","The Royal London Hospital - R1H12",521,7434,0.66794625719769674,0.2034548944337812,244,104,34,28,78,33]
["QMF","R1H","BARTS HEALTH NHS TRUST","R1HKH","Whipps Cross University Hospital - R1HKH",892,6765,0.73991031390134532,0.16367713004484305,452,208,55,48,98,31]
["QMF","R1H","BARTS HEALTH NHS TRUST","R1HXXX","WiC_MIU - R1HXXX",1214,20118,0.49093904448105435,0.35749588138385502,386,210,97,111,323,87]
["QMF","RQX","HOMERTON HEALTHCARE NHS FOUNDATION TRUST","RQXM1","Homerton University Hospital - RQXM1",276,10798,0.75362318840579712,0.18478260869565216,143,65,16,26,25,1]
["QMJ","RP6","MOORFIELDS EYE HOSPITAL NHS FOUNDATION TRUST","RP601","Moorfields Eye Hospital (City Road) - RP601",2502,6342,0.92126298960831332,3.3573141486810551E-2,1942,363,59,43,41,54]
["QMJ","RAP","NORTH MIDDLESEX UNIVERSITY HOSPITAL NHS TRUST","RAPNM","North Middlesex Hospital - RAPNM",2259,18831,0.58388667552014162,0.30677290836653387,897,422,195,193,500,52]
["QMJ","RAL","ROYAL FREE LONDON NHS FOUNDATION TRUST","RAL26","Barnet Hospital - RAL26",284,8365,0.67957746478873238,0.23591549295774647,141,52,21,14,53,3]
["QMJ","RAL","ROYAL FREE LONDON NHS FOUNDATION TRUST","RALC7","Chase Farm Hospital - RALC7",83,2944,0.72289156626506024,0.14457831325301204,52,8,4,2,10,7]
["QMJ","RAL","ROYAL FREE LONDON NHS FOUNDATION TRUST","RAL01","Royal Free Hospital - RAL01",280,8092,0.8035714285714286,0.11785714285714285,174,51,16,9,24,6]
["QMJ","RRV","UNIVERSITY COLLEGE LONDON HOSPITALS NHS FOUNDATION TRUST","RRV03","University College Hospital - RRV03",2341,11474,0.80991029474583509,0.12516018795386588,1572,324,119,89,204,33]
["QMJ","RKE","WHITTINGTON HEALTH NHS TRUST","RKEQ4","The Whittington Hospital - RKEQ4",896,7964,0.7533482142857143,0.18191964285714285,504,171,53,54,109,5]
["QMM","RGP","JAMES PAGET UNIVERSITY HOSPITALS NHS FOUNDATION TRUST","RGP75","James Paget University Hospital - RGP75",44,5507,0.52272727272727271,0.40909090909090912,18,5,3,5,13,0]
["QMM","RM1","NORFOLK AND NORWICH UNIVERSITY HOSPITALS NHS FOUNDATION TRUST","RM102","Norfolk and Norwich University Hospital - RM102",886,8974,0.73024830699774268,0.17720090293453725,434,213,80,62,95,2]
["QMM","RCX","THE QUEEN ELIZABETH HOSPITAL, KING'S LYNN, NHS FOUNDATION TRUST","RCX70","The Queen Elizabeth Hospital - RCX70",325,4409,0.75076923076923074,0.15384615384615385,179,65,27,20,30,4]
["QNC","RJE","UNIVERSITY HOSPITALS OF NORTH MIDLANDS NHS TRUST","RJE09","County Hospital - RJE09",430,2886,0.80930232558139537,0.10930232558139535,239,109,35,16,31,0]
["QNC","RJE","UNIVERSITY HOSPITALS OF NORTH MIDLANDS NHS TRUST","RJE01","Royal Stoke University Hospital - RJE01",1207,7130,0.69428334714167361,0.19884009942004971,578,260,123,86,154,6]
["QNC","RJE","UNIVERSITY HOSPITALS OF NORTH MIDLANDS NHS TRUST","RJEXXX","WiC_MIU - RJEXXX",130,6014,0.92307692307692313,6.1538461538461542E-2,106,14,2,1,7,0]
["QNQ","RDU","FRIMLEY HEALTH NHS FOUNDATION TRUST","RDU01","Frimley Park Hospital - RDU01",1187,10882,0.7144060657118787,0.20977253580454927,574,274,89,98,151,1]
["QNQ","RDU","FRIMLEY HEALTH NHS FOUNDATION TRUST","RDU50","Wexham Park Hospital - RDU50",671,11032,0.68703427719821164,0.21460506706408347,322,139,62,33,111,4]
["QNX","RXC","EAST SUSSEX HEALTHCARE NHS TRUST","RXC01","Conquest Hospital - RXC01",1,5437,"*","*","*","*","*","*","*","*"]
["QNX","RXC","EAST SUSSEX HEALTHCARE NHS TRUST","RXC02","Eastbourne District General Hospital - RXC02",49,5973,0.79591836734693877,0.12244897959183673,"*","*","*","*","*","*"]
["QNX","RPC","QUEEN VICTORIA HOSPITAL NHS FOUNDATION TRUST","RPC","QUEEN VICTORIA HOSPITAL NHS FOUNDATION TRUST",278,1264,0.96762589928057552,1.4388489208633094E-2,242,27,4,1,3,1]
["QNX","RYR","UNIVERSITY HOSPITALS SUSSEX NHS FOUNDATION TRUST","N6J7V","Princess Royal Hospital - N6J7V",745,3646,0.78657718120805364,0.13154362416107382,430,156,50,43,55,11]
["QNX","RYR","UNIVERSITY HOSPITALS SUSSEX NHS FOUNDATION TRUST","E0A3H","Royal Sussex County Hospital - E0A3H",982,6157,0.74134419551934827,0.16089613034623218,538,190,80,56,102,16]
["QNX","RYR","UNIVERSITY HOSPITALS SUSSEX NHS FOUNDATION TRUST","RYR16","St Richard's Hospital - RYR16",461,4511,0.67245119305856837,0.16052060737527116,220,90,42,25,49,35]
["QNX","RYR","UNIVERSITY HOSPITALS SUSSEX NHS FOUNDATION TRUST","X5M8P","Sussex Eye Hospital - X5M8P",294,1374,0.90136054421768708,4.7619047619047616E-2,229,36,14,9,5,1]
["QNX","RYR","UNIVERSITY HOSPITALS SUSSEX NHS FOUNDATION TRUST","G0W1C","The Royal Alexandra Children's Hospital - G0W1C",259,2603,0.79536679536679533,0.14671814671814673,154,52,15,18,20,0]
["QNX","RYR","UNIVERSITY HOSPITALS SUSSEX NHS FOUNDATION TRUST","RYR18","Worthing Hospital - RYR18",745,5969,0.73959731543624163,0.13691275167785236,387,164,57,40,62,35]
["QOC","RXW","THE SHREWSBURY AND TELFORD HOSPITAL NHS TRUST","RXWAS","Royal Shrewsbury Hospital - RXWAS",20,7302,0.85,0.1,"*","*","*","*","*","*"]
["QOC","RXW","THE SHREWSBURY AND TELFORD HOSPITAL NHS TRUST","RXWAT","The Princess Royal Hospital - RXWAT",2,6383,"*","*","*","*","*","*","*","*"]
["QOP","RMC","BOLTON NHS FOUNDATION TRUST","RMC01","Royal Bolton Hospital - RMC01",1244,9050,0.82556270096463025,0.12540192926045016,850,177,44,45,111,17]
["QOP","R0A","MANCHESTER UNIVERSITY NHS FOUNDATION TRUST","R0A04","Manchester Royal Eye Hospital - R0A04",163,2386,0.87116564417177911,5.5214723926380369E-2,94,48,7,3,6,5]
["QOP","R0A","MANCHESTER UNIVERSITY NHS FOUNDATION TRUST","R0A02","Manchester Royal Infirmary - R0A02",601,9242,0.53244592346089847,0.37770382695507487,210,110,47,59,168,7]
["QOP","R0A","MANCHESTER UNIVERSITY NHS FOUNDATION TRUST","R0A66","North Manchester General Hospital -R0A66",85,6022,0.58823529411764708,0.28235294117647058,29,21,9,7,17,2]
["QOP","R0A","MANCHESTER UNIVERSITY NHS FOUNDATION TRUST","R0A03","Royal Manchester Children's Hospital - R0A03",323,5040,0.75851393188854488,0.17337461300309598,185,60,19,21,35,3]
["QOP","R0A","MANCHESTER UNIVERSITY NHS FOUNDATION TRUST","R0A09","Trafford General Hospital - R0A09",86,2167,0.96511627906976749,1.1627906976744186E-2,75,8,2,1,0,0]
["QOP","R0A","MANCHESTER UNIVERSITY NHS FOUNDATION TRUST","R0A07","Wythenshawe Hospital - R0A07",942,9140,0.76326963906581746,0.16666666666666666,491,228,59,50,107,7]
["QOP","RWJ","STOCKPORT NHS FOUNDATION TRUST","RWJ09","Stepping Hill Hospital - RWJ09",1302,7498,0.83102918586789554,9.8310291858678955E-2,831,251,77,49,79,15]
["QOP","RMP","TAMESIDE AND GLOSSOP INTEGRATED CARE NHS FOUNDATION TRUST","RMP01","Tameside General Hospital - RMP01",852,9177,0.68896713615023475,0.25704225352112675,471,116,46,65,154,0]
["QOP","RRF","WRIGHTINGTON, WIGAN AND LEIGH NHS FOUNDATION TRUST","RRF02","Royal Albert Edward Infirmary - RRF02",1242,7345,0.68921095008051525,0.20933977455716588,622,234,102,117,143,24]
["QOQ","RCD","HARROGATE AND DISTRICT NHS FOUNDATION TRUST","RCD01","Harrogate District Hospital - RCD01",441,2747,0.82766439909297052,8.8435374149659865E-2,236,129,33,27,12,4]
["QOQ","RCD","HARROGATE AND DISTRICT NHS FOUNDATION TRUST","RCD02","Ripon and District Community Hospital - RCD02",0,33,"NA","NA",0,0,0,0,0,0]
["QOQ","RCD","HARROGATE AND DISTRICT NHS FOUNDATION TRUST","RCDXXX","WiC_MIU - RCDXXX",0,630,"NA","NA",0,0,0,0,0,0]
["QOQ","RWA","HULL UNIVERSITY TEACHING HOSPITALS NHS TRUST","RWA01","Hull Royal Infirmary - RWA01",1450,10540,0.65655172413793106,0.23379310344827586,689,263,122,114,225,37]
["QOQ","RJL","NORTHERN LINCOLNSHIRE AND GOOLE NHS FOUNDATION TRUST","RJL30","Diana, Princess Of Wales Hospital - RJL30",191,2908,0.70680628272251311,0.21989528795811519,91,44,14,20,22,0]
["QOQ","RJL","NORTHERN LINCOLNSHIRE AND GOOLE NHS FOUNDATION TRUST","RJL32","Scunthorpe General Hospital - RJL32",209,2686,0.74641148325358853,0.20095693779904306,110,46,11,21,21,0]
["QOQ","RCB","YORK AND SCARBOROUGH TEACHING HOSPITALS NHS FOUNDATION TRUST","RCBCA","Scarborough General Hospital - RCBCA",72,1777,0.75,0.125,42,12,8,3,6,1]
["QOQ","RCB","YORK AND SCARBOROUGH TEACHING HOSPITALS NHS FOUNDATION TRUST","RCB55","York Hospital - RCB55",312,4972,0.77884615384615385,0.11858974358974358,165,78,31,25,12,1]
["QOX","RN3","GREAT WESTERN HOSPITALS NHS FOUNDATION TRUST","RN3TC","The Brunel NHS Treatment Centre - RN3TC",586,3362,0.71843003412969286,0.19795221843003413,298,123,41,41,75,8]
["QOX","RN3","GREAT WESTERN HOSPITALS NHS FOUNDATION TRUST","RN325","The Great Western Hospital - RN325",499,2661,0.70741482965931868,0.18637274549098196,270,83,47,28,65,6]
["QOX","RD1","ROYAL UNITED HOSPITALS BATH NHS FOUNDATION TRUST","RD130","Royal United Hospital - RD130",72,6596,0.84722222222222221,0.1111111111111111,"*","*","*","*","*","*"]
["QOX","RNZ","SALISBURY NHS FOUNDATION TRUST","RNZ02","Salisbury District Hospital - RNZ02",1,3032,"*","*","*","*","*","*","*","*"]
["QPM","RNQ","KETTERING GENERAL HOSPITAL NHS FOUNDATION TRUST","RNQ51","Kettering General Hospital - RNQ51",365,7145,0.78082191780821919,0.15890410958904111,219,66,18,22,36,4]
["QPM","RNS","NORTHAMPTON GENERAL HOSPITAL NHS TRUST","RNS01","Northampton General Hospital (Acute) - RNS01",1468,9778,0.74795640326975477,0.16621253405994552,794,304,106,85,159,20]
["QR1","RTE","GLOUCESTERSHIRE HOSPITALS NHS FOUNDATION TRUST","RTE01","Cheltenham General Hospital - RTE01",469,2515,0.68656716417910446,0.20895522388059701,205,117,47,40,58,2]
["QR1","RTE","GLOUCESTERSHIRE HOSPITALS NHS FOUNDATION TRUST","RTE03","Gloucestershire Royal Hospital - RTE03",590,3621,0.65423728813559323,0.2440677966101695,241,145,58,55,89,2]
["QRL","RN5","HAMPSHIRE HOSPITALS NHS FOUNDATION TRUST","RN542","Andover War Memorial Hospital - RN542",102,604,0.86274509803921573,6.8627450980392163E-2,79,9,7,5,2,0]
["QRL","RN5","HAMPSHIRE HOSPITALS NHS FOUNDATION TRUST","RN506","Basingstoke and North Hampshire Hospital - RN506",817,4535,0.81517747858017131,0.11995104039167687,498,168,46,44,54,7]
["QRL","RN5","HAMPSHIRE HOSPITALS NHS FOUNDATION TRUST","RN541","Royal Hampshire County Hospital - RN541",676,3752,0.86834319526627224,7.6923076923076927E-2,479,108,34,28,24,3]
["QRL","R1F","ISLE OF WIGHT NHS TRUST","R1F01","St Mary's Hospital - R1F01",10,3691,0.9,0,"*","*","*","*","*","*"]
["QRL","RHU","PORTSMOUTH HOSPITALS UNIVERSITY NATIONAL HEALTH SERVICE TRUST","RHU03","Queen Alexandra Hospital - RHU03",1342,9199,0.81296572280178836,0.12742175856929955,868,223,67,68,103,13]
["QRL","RHU","PORTSMOUTH HOSPITALS UNIVERSITY NATIONAL HEALTH SERVICE TRUST","RHUXXX","WiC_MIU - RHUXXX",559,2959,0.88550983899821112,6.9767441860465115E-2,414,81,24,18,21,1]
["QRL","RHM","UNIVERSITY HOSPITAL SOUTHAMPTON NHS FOUNDATION TRUST","RHM01","Southampton General Hospital - RHM01",3,4629,"*","*","*","*","*","*","*","*"]
["QRV","RQM","CHELSEA AND WESTMINSTER HOSPITAL NHS FOUNDATION TRUST","RQM01","Chelsea and Westminster Hospital - RQM01",559,2502,0.8908765652951699,6.0822898032200361E-2,410,88,24,13,21,3]
["QRV","RQM","CHELSEA AND WESTMINSTER HOSPITAL NHS FOUNDATION TRUST","RQM91","West Middlesex University Hospital - RQM91",872,4362,0.76605504587155959,0.14334862385321101,515,153,69,48,77,10]
["QRV","RQM","CHELSEA AND WESTMINSTER HOSPITAL NHS FOUNDATION TRUST","RQMXXX","WiC_MIU - RQMXXX",1657,8339,0.74894387447193722,0.18165359082679541,908,333,104,112,189,11]
["QRV","RYJ","IMPERIAL COLLEGE HEALTHCARE NHS TRUST","RYJ02","Charing Cross Hospital - RYJ02",661,4379,0.80786686838124055,0.14674735249621784,423,111,30,32,65,0]
["QRV","RYJ","IMPERIAL COLLEGE HEALTHCARE NHS TRUST","RYJ01","St Mary's Hospital (HQ) - RYJ01",595,6449,0.7260504201680672,0.19663865546218487,318,114,42,41,76,4]
["QRV","RYJ","IMPERIAL COLLEGE HEALTHCARE NHS TRUST","RYJ07","Western Eye Hospital - RYJ07",744,3982,0.85483870967741937,8.3333333333333329E-2,456,180,44,28,34,2]
["QRV","RYJ","IMPERIAL COLLEGE HEALTHCARE NHS TRUST","RYJXXX","WiC_MIU - RYJXXX",100,3075,0.73,0.19,57,16,8,6,13,0]
["QRV","R1K","LONDON NORTH WEST UNIVERSITY HEALTHCARE NHS TRUST","R1K04","Ealing Hospital - R1K04",39,1217,0.97435897435897434,2.564102564102564E-2,34,4,0,0,1,0]
["QRV","R1K","LONDON NORTH WEST UNIVERSITY HEALTHCARE NHS TRUST","R1K01","Northwick Park Hospital - R1K01",26,5354,0.96153846153846156,3.8461538461538464E-2,24,1,0,1,0,0]
["QRV","RAS","THE HILLINGDON HOSPITALS NHS FOUNDATION TRUST","RAS01","Hillingdon Hospital - RAS01",387,4532,0.60465116279069764,0.27648578811369506,138,96,44,49,58,2]
["QRV","RAS","THE HILLINGDON HOSPITALS NHS FOUNDATION TRUST","RAS02","Mount Vernon Hospital Site - RAS02",169,1373,0.89940828402366868,5.9171597633136092E-2,131,21,7,3,7,0]
["QSL","RH5","SOMERSET NHS FOUNDATION TRUST","RH5A8","Musgrove Park Hospital - RH5A8",7,5163,0.7142857142857143,0.2857142857142857,"*","*","*","*","*","*"]
["QSL","RH5","SOMERSET NHS FOUNDATION TRUST","RH5XXX","Wic MIU - RH5XXX",1,10211,"*","*","*","*","*","*","*","*"]
["QSL","RA4","YEOVIL DISTRICT HOSPITAL NHS FOUNDATION TRUST","RA430","Yeovil District Hospital - RA430",128,3880,0.828125,8.59375E-2,91,15,11,9,2,0]
["QT1","RX1","NOTTINGHAM UNIVERSITY HOSPITALS NHS TRUST","RX1RA","Nottingham University Hospitals NHS Trust - Queen's Medical Centre Campus - RX1RA",131,10275,0.73282442748091603,0.19847328244274809,78,18,8,4,22,1]
["QT1","RK5","SHERWOOD FOREST HOSPITALS NHS FOUNDATION TRUST","RK5BC","King's Mill Hospital - RK5BC",666,6251,0.80480480480480476,0.12312312312312312,405,131,47,32,50,1]
["QT1","RK5","SHERWOOD FOREST HOSPITALS NHS FOUNDATION TRUST","RK5XXX","WiC_MIU - RK5XXX",973,2342,0.95786228160328879,2.4665981500513873E-2,765,167,17,12,12,0]
["QT6","REF","ROYAL CORNWALL HOSPITALS NHS TRUST","REF12","Royal Cornwall Hospital (Treliske) - REF12",691,5215,0.80752532561505064,0.10564399421128799,414,144,59,34,39,1]
["QT6","REF","ROYAL CORNWALL HOSPITALS NHS TRUST","REF01","West Cornwall Hospital (Penzance) - REF01",197,1715,0.87817258883248728,8.6294416243654817E-2,134,39,6,7,10,1]
["QU9","RXQ","BUCKINGHAMSHIRE HEALTHCARE NHS TRUST","RXQ02","Stoke Mandeville Hospital - RXQ02",633,2702,0.65718799368088465,0.2527646129541864,286,130,47,71,89,10]
["QU9","RTH","OXFORD UNIVERSITY HOSPITALS NHS FOUNDATION TRUST","RTH05","Horton General Hospital - RTH05",663,2637,0.78582202111613875,0.11764705882352941,402,119,54,36,42,10]
["QU9","RTH","OXFORD UNIVERSITY HOSPITALS NHS FOUNDATION TRUST","RTH08","John Radcliffe Hospital - RTH08",1273,5089,0.71091908876669285,0.18695993715632364,669,236,107,95,143,23]
["QU9","RHW","ROYAL BERKSHIRE NHS FOUNDATION TRUST","RHW03","King Edward Vii Hospital - RHW03",12,1132,1,0,12,0,0,0,0,0]
["QU9","RHW","ROYAL BERKSHIRE NHS FOUNDATION TRUST","RHW01","Royal Berkshire Hospital - RHW01",59,10414,0.96610169491525422,1.6949152542372881E-2,55,2,1,1,0,0]
["QUA","RXK","SANDWELL AND WEST BIRMINGHAM HOSPITALS NHS TRUST","RXK03","Birmingham Midland Eye Centre (Bmec) - RXK03",246,1664,0.60162601626016265,0.28048780487804881,96,52,20,33,36,9]
["QUA","RXK","SANDWELL AND WEST BIRMINGHAM HOSPITALS NHS TRUST","RXK02","City Hospital - RXK02",558,5458,0.64516129032258063,0.23118279569892472,248,112,46,26,103,23]
["QUA","RXK","SANDWELL AND WEST BIRMINGHAM HOSPITALS NHS TRUST","RXK01","Sandwell General Hospital - RXK01",535,4184,0.55514018691588785,0.3102803738317757,203,94,49,36,130,23]
["QUA","RNA","THE DUDLEY GROUP NHS FOUNDATION TRUST","RNA01","Russells Hall Hospital - RNA01",1285,4330,0.70505836575875491,0.14708171206225681,678,228,79,78,111,111]
["QUA","RL4","THE ROYAL WOLVERHAMPTON NHS TRUST","RL403","New Cross Hospital - RL403",2089,12020,0.71421732886548583,0.19818094782192436,1085,407,144,139,275,39]
["QUA","RBK","WALSALL HEALTHCARE NHS TRUST","RBK02","Manor Hospital - RBK02",648,3592,0.74691358024691357,0.15432098765432098,332,152,54,36,64,10]
["QUE","RGN","NORTH WEST ANGLIA NHS FOUNDATION TRUST","RGN90","Hinchingbrooke Hospital - RGN90",382,3332,0.66492146596858637,0.21204188481675393,182,72,35,36,45,12]
["QUE","RGN","NORTH WEST ANGLIA NHS FOUNDATION TRUST","RGN80","Peterborough City Hospital - RGN80",747,7920,0.58902275769745649,0.28246318607764392,292,148,79,61,150,17]
["QUE","RGN","NORTH WEST ANGLIA NHS FOUNDATION TRUST","RGN49","Stamford and Rutland Hospital - RGN49",63,634,0.80952380952380953,9.5238095238095233E-2,46,5,4,1,5,2]
["QUY","RVJ","NORTH BRISTOL NHS TRUST","RVJ01","Southmead Hospital - RVJ01",1166,6064,0.774442538593482,0.14322469982847341,683,220,75,48,119,21]
["QUY","RA7","UNIVERSITY HOSPITALS BRISTOL AND WESTON NHS FOUNDATION TRUST","RA708","Bristol Eye Hospital - RA708",84,2051,0.9642857142857143,2.3809523809523808E-2,70,11,1,1,1,0]
["QUY","RA7","UNIVERSITY HOSPITALS BRISTOL AND WESTON NHS FOUNDATION TRUST","RA723","Bristol Royal Hospital For Children - RA723",157,3428,0.84076433121019112,0.11464968152866242,100,32,6,6,12,1]
["QUY","RA7","UNIVERSITY HOSPITALS BRISTOL AND WESTON NHS FOUNDATION TRUST","RA701","Bristol Royal Infirmary - RA701",133,4471,0.75939849624060152,0.15037593984962405,66,35,12,8,12,0]
["QUY","RA7","UNIVERSITY HOSPITALS BRISTOL AND WESTON NHS FOUNDATION TRUST","RA7C2","Weston General Hospital - RA7C2",230,3204,0.83478260869565213,7.8260869565217397E-2,152,40,20,9,9,0]
["QVV","RBD","DORSET COUNTY HOSPITAL NHS FOUNDATION TRUST","RBD01","Dorset County Hospital - RBD01",994,2736,0.8048289738430584,0.12676056338028169,617,183,54,46,80,14]
["QVV","R0D","UNIVERSITY HOSPITALS DORSET NHS FOUNDATION TRUST","R0D01","Poole Hospital - R0D01",639,3156,0.80438184663536771,0.11580594679186229,373,141,41,39,35,10]
["QVV","R0D","UNIVERSITY HOSPITALS DORSET NHS FOUNDATION TRUST","R0D02","Royal Bourenmouth Hospital - R0D02",730,6923,0.75068493150684934,0.16986301369863013,383,165,43,39,85,15]
["QWE","RVR","EPSOM AND ST HELIER UNIVERSITY HOSPITALS NHS TRUST","RVR50","Epsom Hospital - RVR50",666,4793,0.81981981981981977,0.10960960960960961,427,119,39,35,38,8]
["QWE","RVR","EPSOM AND ST HELIER UNIVERSITY HOSPITALS NHS TRUST","RVR05","St Helier Hospital - RVR05",754,6444,0.74933687002652516,0.17108753315649866,406,159,47,58,71,13]
["QWE","RAX","KINGSTON HOSPITAL NHS FOUNDATION TRUST","RAX01","Kingston Hospital - RAX01",0,0,"NA","NA",0,0,0,0,0,0]
["QWE","RAX","KINGSTON HOSPITAL NHS FOUNDATION TRUST","RAXXXX","WiC_MIU - RAXXXX",0,0,"NA","NA",0,0,0,0,0,0]
["QWE","RJ7","ST GEORGE'S UNIVERSITY HOSPITALS NHS FOUNDATION TRUST","RJ701","St George's Hospital (Tooting) - RJ701",1423,10432,0.68236120871398454,0.22628250175685172,626,345,121,136,186,9]
["QWO","RCF","AIREDALE NHS FOUNDATION TRUST","RCF22","Airedale General Hospital - RCF22",566,3013,0.81095406360424027,0.12367491166077739,348,111,32,25,45,5]
["QWO","RAE","BRADFORD TEACHING HOSPITALS NHS FOUNDATION TRUST","RAE01","Bradford Royal Infirmary - RAE01",848,7085,0.70400943396226412,0.20165094339622641,407,190,77,66,105,3]
["QWO","RWY","CALDERDALE AND HUDDERSFIELD NHS FOUNDATION TRUST","RWY02","Calderdale Royal Hospital - RWY02",220,6556,0.80454545454545456,0.1409090909090909,140,37,9,14,17,3]
["QWO","RWY","CALDERDALE AND HUDDERSFIELD NHS FOUNDATION TRUST","RWY01","Huddersfield Royal Infirmary - RWY01",257,5923,0.82101167315175094,0.13618677042801555,179,32,7,10,25,4]
["QWO","RR8","LEEDS TEACHING HOSPITALS NHS TRUST","RR801","Leeds General Infirmary - RR801",1925,9950,0.75636363636363635,0.1677922077922078,1116,340,126,123,200,20]
["QWO","RR8","LEEDS TEACHING HOSPITALS NHS TRUST","RR813","St James's University Hospital - RR813",916,4563,0.73471615720524019,0.18340611353711792,491,182,65,67,101,10]
["QWO","RXF","MID YORKSHIRE HOSPITALS NHS TRUST","RXF10","Dewsbury and District Hospital - RXF10",393,4293,0.70992366412213737,0.20865139949109415,209,70,31,35,47,1]
["QWO","RXF","MID YORKSHIRE HOSPITALS NHS TRUST","RXF05","Pinderfields General Hospital - RXF05",537,4810,0.63314711359404097,0.27746741154562382,230,110,47,51,98,1]
["QWO","RXF","MID YORKSHIRE HOSPITALS NHS TRUST","RXF03","Pontefract General Infirmary - RXF03",442,2745,0.85520361990950222,0.10407239819004525,326,52,18,27,19,0]
["QWU","RLT","GEORGE ELIOT HOSPITAL NHS TRUST","RLT01","George Eliot Hospital - Acute Services - RLT01",1981,4775,0.77637556789500251,0.14840989399293286,1087,451,136,115,179,13]
["QWU","RJC","SOUTH WARWICKSHIRE NHS FOUNDATION TRUST","RJC02","Warwick Hospital - RJC02",251,4136,0.77689243027888444,0.16733067729083664,142,53,14,22,20,0]
["QWU","RKB","UNIVERSITY HOSPITALS COVENTRY AND WARWICKSHIRE NHS TRUST","RKB02","Coventry and Warwickshire Hospital - RKB02",1222,10253,0.68576104746317512,0.22913256955810146,608,230,77,81,199,27]
["QWU","RKB","UNIVERSITY HOSPITALS COVENTRY AND WARWICKSHIRE NHS TRUST","RKB03","Hospital Of St Cross - RKB03",397,2198,0.84634760705289669,9.5717884130982367E-2,278,58,22,16,22,1]
["QWU","RKB","UNIVERSITY HOSPITALS COVENTRY AND WARWICKSHIRE NHS TRUST","RKBXXX","WiC_MIU - RKBXXX",0,1780,"NA","NA",0,0,0,0,0,0]
["QXU","RTK","ASHFORD AND ST PETER'S HOSPITALS NHS FOUNDATION TRUST","RTK01","St Peter's Hospital - RTK01",136,10564,0.83823529411764708,8.8235294117647065E-2,79,35,7,5,7,3]
["QXU","RTP","SURREY AND SUSSEX HEALTHCARE NHS TRUST","RTP04","East Surrey Hospital - RTP04",664,6408,0.82530120481927716,0.10843373493975904,426,122,43,35,37,1]
["QYG","RBS","ALDER HEY CHILDREN'S NHS FOUNDATION TRUST","RBS25","Alder Hey Children's NHS - RBS25",332,6033,0.59638554216867468,0.30722891566265059,138,60,32,37,65,0]
["QYG","RJN","EAST CHESHIRE NHS TRUST","RJN71","Macclesfield District General Hospital - RJN71",757,3219,0.76882430647291944,0.13870541611624834,443,139,55,41,64,15]
["QYG","REM","LIVERPOOL UNIVERSITY HOSPITALS NHS FOUNDATION TRUST","REMRQ","Royal Liverpool University Hospital - REMRQ",872,5378,0.65252293577981646,0.24082568807339449,404,165,67,63,147,26]
["QYG","REM","LIVERPOOL UNIVERSITY HOSPITALS NHS FOUNDATION TRUST","REM21","University Hospital Aintree - REM21",885,4799,0.68135593220338986,0.23954802259887006,458,145,45,58,154,25]
["QYG","REP","LIVERPOOL WOMEN'S NHS FOUNDATION TRUST","REP01","Liverpool Womens Hospital - REP01",82,1129,0.85365853658536583,8.5365853658536592E-2,58,12,4,3,4,1]
["QYG","RBT","MID CHESHIRE HOSPITALS NHS FOUNDATION TRUST","RBT20","Leighton Hospital - RBT20",694,5530,0.80403458213256485,0.12824207492795389,429,129,37,43,46,10]
["QYG","RBT","MID CHESHIRE HOSPITALS NHS FOUNDATION TRUST","RBTXXX","WiC_MIU - RBTXXX",383,2485,0.91122715404699739,4.4386422976501305E-2,306,43,16,10,7,1]
["QYG","RVY","SOUTHPORT AND ORMSKIRK HOSPITAL NHS TRUST","RVY02","Ormskirk and District General Hospital - RVY02",302,1963,0.89072847682119205,8.6092715231788075E-2,223,46,7,17,9,0]
["QYG","RVY","SOUTHPORT AND ORMSKIRK HOSPITAL NHS TRUST","RVY01","Southport and Formby District General Hospital - RVY01",808,2876,0.83539603960396036,0.14232673267326731,523,152,17,55,60,1]
["QYG","RBN","ST HELENS AND KNOWSLEY TEACHING HOSPITALS NHS TRUST","RBN01","Whiston Hospital - RBN01",720,4840,0.81666666666666665,0.1125,451,137,40,47,34,11]
["QYG","RWW","WARRINGTON AND HALTON TEACHING HOSPITALS NHS FOUNDATION TRUST","RWWHG","Halton Hospital - RWWHG",523,3008,0.78585086042065011,0.13575525812619502,317,94,37,28,43,4]
["QYG","RWW","WARRINGTON AND HALTON TEACHING HOSPITALS NHS FOUNDATION TRUST","RWWWH","Warrington Hospital - RWWWH",1309,6412,0.70053475935828879,0.20932009167303284,678,239,92,99,175,26]
["QYG","RBL","WIRRAL UNIVERSITY TEACHING HOSPITAL NHS FOUNDATION TRUST","RBL14","Arrowe Park Hospital - RBL14",751,4960,0.74700399467376832,0.16511318242343542,418,143,57,47,77,9]

{"sheet":"BS","index":5,"n_rows":227,"n_cols":33,"rows_kept":227,"cut":false,"hidden":true,"merged":[]}
[null,"Sort","STP Code","STP name","Trust code","Trust name","Site Code","Site Name",null,"Sort Lists:","Sort range…","Sort range…","Sort range…","Reference Region List:","Code…","Name…","Linked Region List:","Code…","Name…","Reference Lists:","Code…","Code…","Name…","Code…","Name…","Trusts Linked Lists:","Code…","Name…","Sites Linked Lists:","Code…","Name…","Code…","Name…"]
["STP",1,1,1,"-","-","-","-",null,null,"STP Code","STP Code","STP Code",null,"QE1","HEALTHIER LANCASHIRE AND SOUTH CUMBRIA",null,"QE1","HEALTHIER LANCASHIRE AND SOUTH CUMBRIA",null,"QE1","RXL","BLACKPOOL TEACHING HOSPITALS NHS FOUNDATION TRUST","RXL01","Blackpool Victoria Hospital - RXL01",null,"R0A","AIREDALE NHS FOUNDATION TRUST",null,"R0A","AIREDALE NHS FOUNDATION TRUST","E0A3H","Airedale General Hospital - RCF22"]
["Trusts",1,1,1,1,1,"-","-",null,null,"STP","Trust Code","Trust Code",null,"QF7","SOUTH YORKSHIRE AND BASSETLAW STP",null,"QF7","SOUTH YORKSHIRE AND BASSETLAW STP",null,"QE1","RXR","EAST LANCASHIRE HOSPITALS NHS TRUST","RXR20","Royal Blackburn Hospital - RXR20",null,"R0B","ALDER HEY CHILDREN'S NHS FOUNDATION TRUST",null,"R0B","ALDER HEY CHILDREN'S NHS FOUNDATION TRUST","G0W1C","Alder Hey Children's NHS - RBS25"]
["Site",1,1,1,1,1,1,1,null,null,"Total Responses","Trust Name","Trust Name",null,"QGH","HEREFORDSHIRE AND WORCESTERSHIRE STP",null,"QGH","HEREFORDSHIRE AND WORCESTERSHIRE STP",null,"QE1","RXN","LANCASHIRE TEACHING HOSPITALS NHS FOUNDATION TRUST","RXN01","Chorley and South Ribble Hospital - RXN01",null,"R0D","ASHFORD AND ST PETER'S HOSPITALS NHS FOUNDATION TRUST",null,"R0D","ASHFORD AND ST PETER'S HOSPITALS NHS FOUNDATION TRUST","N6J7V","Alexandra Hospital - RWP01"]
[null,null,null,null,null,null,null,null,null,null,"Total Eligible","Total Responses","Site Code",null,"QH8","MID AND SOUTH ESSEX STP",null,"QH8","MID AND SOUTH ESSEX STP",null,"QE1","RXN","LANCASHIRE TEACHING HOSPITALS NHS FOUNDATION TRUST","RXN02","Royal Preston Hospital - RXN02",null,"R1F","BARKING, HAVERING AND REDBRIDGE UNIVERSITY HOSPITALS NHS TRUST",null,"R1F","BARKING, HAVERING AND REDBRIDGE UNIVERSITY HOSPITALS NHS TRUST","R0A02","Andover War Memorial Hospital - RN542"]
[null,null,null,null,null,null,null,null,null,null,"Percentage Positive","Total Eligible","Site Name",null,"QHG","BEDFORDSHIRE, LUTON AND MILTON KEYNES STP",null,"QHG","BEDFORDSHIRE, LUTON AND MILTON KEYNES STP",null,"QE1","RTX","UNIVERSITY HOSPITALS OF MORECAMBE BAY NHS FOUNDATION TRUST","RTXBU","Furness General Hospital - RTXBU",null,"R1H","BARNSLEY HOSPITAL NHS FOUNDATION TRUST",null,"R1H","BARNSLEY HOSPITAL NHS FOUNDATION TRUST","R0A03","Arrowe Park Hospital - RBL14"]
[null,null,null,null,null,null,null,null,null,null,"Percentage Negative","Percentage Positive","Total Responses",null,"QHL","BIRMINGHAM AND SOLIHULL STP",null,"QHL","BIRMINGHAM AND SOLIHULL STP",null,"QE1","RTX","UNIVERSITY HOSPITALS OF MORECAMBE BAY NHS FOUNDATION TRUST","RTX02","Royal Lancaster Infirmary - RTX02",null,"R1K","BARTS HEALTH NHS TRUST",null,"R1K","BARTS HEALTH NHS TRUST","R0A04","Barnet Hospital - RAL26"]
[null,null,null,null,null,null,null,null,null,null,"Very Good","Percentage Negative","Total Eligible",null,"QHM","CUMBRIA AND NORTH EAST STP",null,"QHM","CUMBRIA AND NORTH EAST STP",null,"QE1","RTX","UNIVERSITY HOSPITALS OF MORECAMBE BAY NHS FOUNDATION TRUST","RTXBW","Westmorland General Hospital - RTXBW",null,"RA4","BEDFORDSHIRE HOSPITALS NHS FOUNDATION TRUST",null,"RA4","BEDFORDSHIRE HOSPITALS NHS FOUNDATION TRUST","R0A07","Barnsley Hospital NHS Foundation Trust HQ - RFFAA"]
[null,null,null,null,null,null,null,null,null,null,"Good","Very Good","Percentage Positive",null,"QJ2","JOINED UP CARE DERBYSHIRE STP",null,"QJ2","JOINED UP CARE DERBYSHIRE STP",null,"QF7","RFF","BARNSLEY HOSPITAL NHS FOUNDATION TRUST","RFFAA","Barnsley Hospital NHS Foundation Trust HQ - RFFAA",null,"RA7","BIRMINGHAM WOMEN'S AND CHILDREN'S NHS FOUNDATION TRUST",null,"RA7","BIRMINGHAM WOMEN'S AND CHILDREN'S NHS FOUNDATION TRUST","R0A09","Basildon Hospital - RAJ12"]
[null,null,null,null,null,null,null,null,null,null,"Neither Good nor Poor","Good","Percentage Negative",null,"QJG","SUFFOLK AND NORTH EAST ESSEX ICS",null,"QJG","SUFFOLK AND NORTH EAST ESSEX ICS",null,"QF7","RP5","DONCASTER AND BASSETLAW TEACHING HOSPITALS NHS FOUNDATION TRUST","RP5BA","Bassetlaw Hospital - RP5BA",null,"RA9","BLACKPOOL TEACHING HOSPITALS NHS FOUNDATION TRUST",null,"RA9","BLACKPOOL TEACHING HOSPITALS NHS FOUNDATION TRUST","R0A66","Basingstoke and North Hampshire Hospital - RN506"]
[null,null,null,null,null,null,null,null,null,null,"Poor","Neither Good nor Poor","Very Good",null,"QJK","DEVON STP",null,"QJK","DEVON STP",null,"QF7","RP5","DONCASTER AND BASSETLAW TEACHING HOSPITALS NHS FOUNDATION TRUST","RP5DR","Doncaster Royal Infirmary - RP5DR",null,"RAE","BOLTON NHS FOUNDATION TRUST",null,"RAE","BOLTON NHS FOUNDATION TRUST","R0B01","Bassetlaw Hospital - RP5BA"]
[null,null,null,null,null,null,null,null,null,null,"Very Poor","Poor","Good",null,"QJM","LINCOLNSHIRE STP",null,"QJM","LINCOLNSHIRE STP",null,"QF7","RP5","DONCASTER AND BASSETLAW TEACHING HOSPITALS NHS FOUNDATION TRUST","RP5MM","Montagu Hospital - RP5MM",null,"RAJ","BRADFORD TEACHING HOSPITALS NHS FOUNDATION TRUST",null,"RAJ","BRADFORD TEACHING HOSPITALS NHS FOUNDATION TRUST","R0B0Q","Bedford Hospital South Wing - RC979"]
[null,null,null,null,null,null,null,null,null,null,"Don't Know","Very Poor","Neither Good nor Poor",null,"QK1","LEICESTER, LEICESTERSHIRE AND RUTLAND STP",null,"QK1","LEICESTER, LEICESTERSHIRE AND RUTLAND STP",null,"QF7","RCU","SHEFFIELD CHILDREN'S NHS FOUNDATION TRUST","RCUEF","Sheffield Children's Hospital - RCUEF",null,"RAL","BUCKINGHAMSHIRE HEALTHCARE NHS TRUST",null,"RAL","BUCKINGHAMSHIRE HEALTHCARE NHS TRUST","R0B0X","Birmingham Children's Hospital - RQ301"]
[null,null,null,null,null,null,null,null,null,null,null,"Don't Know","Poor",null,"QKK","OUR HEALTHIER SOUTH EAST LONDON STP",null,"QKK","OUR HEALTHIER SOUTH EAST LONDON STP",null,"QF7","RHQ","SHEFFIELD TEACHING HOSPITALS NHS FOUNDATION TRUST","RHQNG","Northern General Hospital - RHQNG",null,"RAP","CALDERDALE AND HUDDERSFIELD NHS FOUNDATION TRUST",null,"RAP","CALDERDALE AND HUDDERSFIELD NHS FOUNDATION TRUST","R0D01","Birmingham Midland Eye Centre (Bmec) - RXK03"]
[null,null,null,null,null,null,null,null,null,null,null,"Mode SMS","Very Poor",null,"QKS","KENT AND MEDWAY STP",null,"QKS","KENT AND MEDWAY STP",null,"QF7","RHQ","SHEFFIELD TEACHING HOSPITALS NHS FOUNDATION TRUST","RHQHH","Royal Hallamshire Hospital - RHQHH",null,"RAS","CHELSEA AND WESTMINSTER HOSPITAL NHS FOUNDATION TRUST",null,"RAS","CHELSEA AND WESTMINSTER HOSPITAL NHS FOUNDATION TRUST","R0D02","Blackpool Victoria Hospital - RXL01"]
[null,null,null,null,null,null,null,null,null,null,null,"Mode Electronic Discharge","Don't Know",null,"QM7","HERTFORDSHIRE AND WEST ESSEX STP",null,"QM7","HERTFORDSHIRE AND WEST ESSEX STP",null,"QF7","RHQ","SHEFFIELD TEACHING HOSPITALS NHS FOUNDATION TRUST","RHQXXX","WiC_MIU - RHQXXX",null,"RAX","CHESTERFIELD ROYAL HOSPITAL NHS FOUNDATION TRUST",null,"RAX","CHESTERFIELD ROYAL HOSPITAL NHS FOUNDATION TRUST","R1F01","Bradford Royal Infirmary - RAE01"]
[null,null,null,null,null,null,null,null,null,null,null,"Mode Paper Discharge",null,null,"QMF","EAST LONDON HEALTH & CARE PARTNERSHIP (STP)",null,"QMF","EAST LONDON HEALTH & CARE PARTNERSHIP (STP)",null,"QF7","RFR","THE ROTHERHAM NHS FOUNDATION TRUST","RFRPA","Rotherham District General Hospital - RFRPA",null,"RBD","COUNTY DURHAM AND DARLINGTON NHS FOUNDATION TRUST",null,"RBD","COUNTY DURHAM AND DARLINGTON NHS FOUNDATION TRUST","R1H12","Bristol Eye Hospital - RA708"]
[null,null,null,null,null,null,null,null,null,null,null,"Mode Paper Home",null,null,"QMJ","NORTH LONDON PARTNERS IN HEALTH & CARE (STP)",null,"QMJ","NORTH LONDON PARTNERS IN HEALTH & CARE (STP)",null,"QGH","RWP","WORCESTERSHIRE ACUTE HOSPITALS NHS TRUST","RWP01","Alexandra Hospital - RWP01",null,"RBK","DARTFORD AND GRAVESHAM NHS TRUST",null,"RBK","DARTFORD AND GRAVESHAM NHS TRUST","R1HKH","Bristol Royal Hospital For Children - RA723"]
[null,null,null,null,null,null,null,null,null,null,null,"Mode Telephone",null,null,"QMM","NORFOLK AND WAVENEY HEALTH & CARE PARTNERSHIP (STP)",null,"QMM","NORFOLK AND WAVENEY HEALTH & CARE PARTNERSHIP (STP)",null,"QGH","RWP","WORCESTERSHIRE ACUTE HOSPITALS NHS TRUST","RWP31","Kidderminster Hospital - RWP31",null,"RBL","DONCASTER AND BASSETLAW TEACHING HOSPITALS NHS FOUNDATION TRUST",null,"RBL","DONCASTER AND BASSETLAW TEACHING HOSPITALS NHS FOUNDATION TRUST","R1HM0","Bristol Royal Infirmary - RA701"]
[null,null,null,null,null,null,null,null,null,null,null,"Mode Online",null,null,"QNC","STAFFORDSHIRE & STOKE ON TRENT STP",null,"QNC","STAFFORDSHIRE & STOKE ON TRENT STP",null,"QGH","RWP","WORCESTERSHIRE ACUTE HOSPITALS NHS TRUST","RWP50","Worcestershire Royal Hospital - RWP50",null,"RBN","DORSET COUNTY HOSPITAL NHS FOUNDATION TRUST",null,"RBN","DORSET COUNTY HOSPITAL NHS FOUNDATION TRUST","R1HNH","Calderdale Royal Hospital - RWY02"]
[null,null,null,null,null,null,null,null,null,null,null,"Mode Other",null,null,"QNQ","FRIMLEY HEALTH & CARE (STP)",null,"QNQ","FRIMLEY HEALTH & CARE (STP)",null,"QGH","RLQ","WYE VALLEY NHS TRUST","RLQ01","Hereford County Hospital - RLQ01",null,"RBS","EAST AND NORTH HERTFORDSHIRE NHS TRUST",null,"RBS","EAST AND NORTH HERTFORDSHIRE NHS TRUST","R1HXXX","Charing Cross Hospital - RYJ02"]
[null,null,null,null,null,null,null,null,null,null,null,null,null,null,"QNX","SUSSEX HEALTH AND CARE PARTNERSHIP",null,"QNX","SUSSEX HEALTH AND CARE PARTNERSHIP",null,"QH8","RAJ","MID AND SOUTH ESSEX NHS FOUNDATION TRUST","RAJ12","Basildon Hospital - RAJ12",null,"RBT","EAST CHESHIRE NHS TRUST",null,"RBT","EAST CHESHIRE NHS TRUST","R1K01","Chase Farm Hospital - RALC7"]
[null,null,null,null,null,null,null,null,null,null,null,null,null,null,"QOC","SHROPSHIRE AND TELFORD AND WREKIN STP",null,"QOC","SHROPSHIRE AND TELFORD AND WREKIN STP",null,"QH8","RAJ","MID AND SOUTH ESSEX NHS FOUNDATION TRUST","RAJ32","Mid Essex Hospital - RAJ32",null,"RC9","EAST KENT HOSPITALS UNIVERSITY NHS FOUNDATION TRUST",null,"RC9","EAST KENT HOSPITALS UNIVERSITY NHS FOUNDATION TRUST","R1K04","Chelsea and Westminster Hospital - RQM01"]
[null,null,null,null,null,null,null,null,null,null,null,null,null,null,"QOP","GREATER MANCHESTER HEALTH & SOCIAL CARE PARTNERSHIP",null,"QOP","GREATER MANCHESTER HEALTH & SOCIAL CARE PARTNERSHIP",null,"QH8","RAJ","MID AND SOUTH ESSEX NHS FOUNDATION TRUST","RAJ01","Southend Hospital - RAJ01",null,"RCB","EAST LANCASHIRE HOSPITALS NHS TRUST",null,"RCB","EAST LANCASHIRE HOSPITALS NHS TRUST","RA430","Cheltenham General Hospital - RTE01"]
[null,null,null,null,null,null,null,null,null,null,null,null,null,null,"QOQ","HUMBER, COAST AND VALE STP",null,"QOQ","HUMBER, COAST AND VALE STP",null,"QHG","RC9","BEDFORDSHIRE HOSPITALS NHS FOUNDATION TRUST","RC979","Bedford Hospital South Wing - RC979",null,"RCD","EAST SUFFOLK AND NORTH ESSEX NHS FOUNDATION TRUST",null,"RCD","EAST SUFFOLK AND NORTH ESSEX NHS FOUNDATION TRUST","RA701","Chesterfield Royal Hospital - RFSDA"]
[null,null,null,null,null,null,null,null,null,null,null,null,null,null,"QOX","BATH AND NORTH EAST SOMERSET, SWINDON AND WILTSHIRE STP",null,"QOX","BATH AND NORTH EAST SOMERSET, SWINDON AND WILTSHIRE STP",null,"QHG","RC9","BEDFORDSHIRE HOSPITALS NHS FOUNDATION TRUST","RC971","Luton and Dunstable Hospital - RC971",null,"RCF","EAST SUSSEX HEALTHCARE NHS TRUST",null,"RCF","EAST SUSSEX HEALTHCARE NHS TRUST","RA708","Chorley and South Ribble Hospital - RXN01"]
[null,null,null,null,null,null,null,null,null,null,null,null,null,null,"QPM","NORTHAMPTONSHIRE STP",null,"QPM","NORTHAMPTONSHIRE STP",null,"QHG","RD8","MILTON KEYNES UNIVERSITY HOSPITAL NHS FOUNDATION TRUST","RD816","Milton Keynes Hospital - RD816",null,"RCU","EPSOM AND ST HELIER UNIVERSITY HOSPITALS NHS TRUST",null,"RCU","EPSOM AND ST HELIER UNIVERSITY HOSPITALS NHS TRUST","RA723","City Hospital - RXK02"]
[null,null,null,null,null,null,null,null,null,null,null,null,null,null,"QR1","GLOUCESTERSHIRE STP",null,"QR1","GLOUCESTERSHIRE STP",null,"QHL","RQ3","BIRMINGHAM WOMEN'S AND CHILDREN'S NHS FOUNDATION TRUST","RQ301","Birmingham Children's Hospital - RQ301",null,"RCX","FRIMLEY HEALTH NHS FOUNDATION TRUST",null,"RCX","FRIMLEY HEALTH NHS FOUNDATION TRUST","RA7C2","Clacton and District Hospital - RDEE2"]
[null,null,null,null,null,null,null,null,null,null,null,null,null,null,"QRL","HAMPSHIRE AND THE ISLE OF WIGHT STP",null,"QRL","HAMPSHIRE AND THE ISLE OF WIGHT STP",null,"QHL","RRK","UNIVERSITY HOSPITALS BIRMINGHAM NHS FOUNDATION TRUST","RRK98","Good Hope Hospital - RRK98",null,"RD1","GATESHEAD HEALTH NHS FOUNDATION TRUST",null,"RD1","GATESHEAD HEALTH NHS FOUNDATION TRUST","RA901","Colchester General Hospital - RDEE4"]
[null,null,null,null,null,null,null,null,null,null,null,null,null,null,"QRV","NORTH WEST LONDON HEALTH & CARE PARTNERSHIP (STP)",null,"QRV","NORTH WEST LONDON HEALTH & CARE PARTNERSHIP (STP)",null,"QHL","RRK","UNIVERSITY HOSPITALS BIRMINGHAM NHS FOUNDATION TRUST","RRK97","Heartlands Hospital - RRK97",null,"RD8","GEORGE ELIOT HOSPITAL NHS TRUST",null,"RD8","GEORGE ELIOT HOSPITAL NHS TRUST","RAE01","Conquest Hospital - RXC01"]
[null,null,null,null,null,null,null,null,null,null,null,null,null,null,"QSL","SOMERSET STP",null,"QSL","SOMERSET STP",null,"QHL","RRK","UNIVERSITY HOSPITALS BIRMINGHAM NHS FOUNDATION TRUST","RRK15","Queen Elizabeth Hospital Birmingham - RRK15",null,"RDE","GLOUCESTERSHIRE HOSPITALS NHS FOUNDATION TRUST",null,"RDE","GLOUCESTERSHIRE HOSPITALS NHS FOUNDATION TRUST","RAJ01","County Hospital - RJE09"]
[null,null,null,null,null,null,null,null,null,null,null,null,null,null,"QT1","NOTTINGHAM AND NOTTINGHAMSHIRE HEALTH AND CARE STP",null,"QT1","NOTTINGHAM AND NOTTINGHAMSHIRE HEALTH AND CARE STP",null,"QHM","RXP","COUNTY DURHAM AND DARLINGTON NHS FOUNDATION TRUST","RXPXXX","WiC_MIU - RXPXXX",null,"RDU","GREAT WESTERN HOSPITALS NHS FOUNDATION TRUST",null,"RDU","GREAT WESTERN HOSPITALS NHS FOUNDATION TRUST","RAJ12","Coventry and Warwickshire Hospital - RKB02"]
[null,null,null,null,null,null,null,null,null,null,null,null,null,null,"QT6","CORNWALL AND THE ISLES OF SCILLY HEALTH & SOCIAL CARE PARTNERSHIP (STP)",null,"QT6","CORNWALL AND THE ISLES OF SCILLY HEALTH & SOCIAL CARE PARTNERSHIP (STP)",null,"QHM","RR7","GATESHEAD HEALTH NHS FOUNDATION TRUST","RR7EN","Queen Elizabeth Hospital - RR7EN",null,"REF","GUY'S AND ST THOMAS' NHS FOUNDATION TRUST",null,"REF","GUY'S AND ST THOMAS' NHS FOUNDATION TRUST","RAJ32","Cumberland Infirmary - RNN62"]
[null,null,null,null,null,null,null,null,null,null,null,null,null,null,"QU9","BUCKINGHAMSHIRE, OXFORDSHIRE AND BERKSHIRE WEST STP",null,"QU9","BUCKINGHAMSHIRE, OXFORDSHIRE AND BERKSHIRE WEST STP",null,"QHM","RR7","GATESHEAD HEALTH NHS FOUNDATION TRUST","RR7XXX","WiC_MIU - RR7XXX",null,"REM","HAMPSHIRE HOSPITALS NHS FOUNDATION TRUST",null,"REM","HAMPSHIRE HOSPITALS NHS FOUNDATION TRUST","RAL01","Darent Valley Hospital - RN707"]
[null,null,null,null,null,null,null,null,null,null,null,null,null,null,"QUA","THE BLACK COUNTRY AND WEST BIRMINGHAM STP",null,"QUA","THE BLACK COUNTRY AND WEST BIRMINGHAM STP",null,"QHM","RNN","NORTH CUMBRIA INTEGRATED CARE NHS FOUNDATION TRUST","RNN62","Cumberland Infirmary - RNN62",null,"REP","HARROGATE AND DISTRICT NHS FOUNDATION TRUST",null,"REP","HARROGATE AND DISTRICT NHS FOUNDATION TRUST","RAL26","Derriford Hospital - RK950"]
[null,null,null,null,null,null,null,null,null,null,null,null,null,null,"QUE","CAMBRIDGESHIRE AND PETERBOROUGH STP",null,"QUE","CAMBRIDGESHIRE AND PETERBOROUGH STP",null,"QHM","RNN","NORTH CUMBRIA INTEGRATED CARE NHS FOUNDATION TRUST","RNNBX","West Cumberland Hospital - RNNBX",null,"RF4","HOMERTON HEALTHCARE NHS FOUNDATION TRUST",null,"RF4","HOMERTON HEALTHCARE NHS FOUNDATION TRUST","RALC7","Dewsbury and District Hospital - RXF10"]
[null,null,null,null,null,null,null,null,null,null,null,null,null,null,"QUY","BRISTOL, NORTH SOMERSET AND SOUTH GLOUCESTERSHIRE STP",null,"QUY","BRISTOL, NORTH SOMERSET AND SOUTH GLOUCESTERSHIRE STP",null,"QHM","RVW","NORTH TEES AND HARTLEPOOL NHS FOUNDATION TRUST","RVWAE","University Hospital Of North Tees - RVWAE",null,"RFF","HULL UNIVERSITY TEACHING HOSPITALS NHS TRUST",null,"RFF","HULL UNIVERSITY TEACHING HOSPITALS NHS TRUST","RAPNM","Diana, Princess Of Wales Hospital - RJL30"]
[null,null,null,null,null,null,null,null,null,null,null,null,null,null,"QVV","DORSET STP",null,"QVV","DORSET STP",null,"QHM","RTF","NORTHUMBRIA HEALTHCARE NHS FOUNDATION TRUST","RTF86","The Northumbria - RTF86",null,"RFR","IMPERIAL COLLEGE HEALTHCARE NHS TRUST",null,"RFR","IMPERIAL COLLEGE HEALTHCARE NHS TRUST","RAS01","Doncaster Royal Infirmary - RP5DR"]
[null,null,null,null,null,null,null,null,null,null,null,null,null,null,"QWE","SOUTH WEST LONDON HEALTH & CARE PARTNERSHIP (STP)",null,"QWE","SOUTH WEST LONDON HEALTH & CARE PARTNERSHIP (STP)",null,"QHM","RTF","NORTHUMBRIA HEALTHCARE NHS FOUNDATION TRUST","RTFXXX","WiC_MIU - RTFXXX",null,"RFS","ISLE OF WIGHT NHS TRUST",null,"RFS","ISLE OF WIGHT NHS TRUST","RAS02","Dorset County Hospital - RBD01"]
[null,null,null,null,null,null,null,null,null,null,null,null,null,null,"QWO","WEST YORKSHIRE AND HARROGATE HEALTH & CARE PARTNERSHIP (STP)",null,"QWO","WEST YORKSHIRE AND HARROGATE HEALTH & CARE PARTNERSHIP (STP)",null,"QHM","RTR","SOUTH TEES HOSPITALS NHS FOUNDATION TRUST","RTR45","Friarage Hospital Site - RTR45",null,"RGN","JAMES PAGET UNIVERSITY HOSPITALS NHS FOUNDATION TRUST",null,"RGN","JAMES PAGET UNIVERSITY HOSPITALS NHS FOUNDATION TRUST","RAX01","Ealing Hospital - R1K04"]
[null,null,null,null,null,null,null,null,null,null,null,null,null,null,"QWU","COVENTRY AND WARWICKSHIRE STP",null,"QWU","COVENTRY AND WARWICKSHIRE STP",null,"QHM","RTR","SOUTH TEES HOSPITALS NHS FOUNDATION TRUST","RTRAT","The James Cook University Hospital - RTRAT",null,"RGP","KETTERING GENERAL HOSPITAL NHS FOUNDATION TRUST",null,"RGP","KETTERING GENERAL HOSPITAL NHS FOUNDATION TRUST","RAXXXX","East Surrey Hospital - RTP04"]
[null,null,null,null,null,null,null,null,null,null,null,null,null,null,"QXU","SURREY HEARTLANDS HEALTH & CARE PARTNERSHIP (STP)",null,"QXU","SURREY HEARTLANDS HEALTH & CARE PARTNERSHIP (STP)",null,"QHM","RTR","SOUTH TEES HOSPITALS NHS FOUNDATION TRUST","RTRXXX","WiC_MIU - RTRXXX",null,"RGR","KING'S COLLEGE HOSPITAL NHS FOUNDATION TRUST",null,"RGR","KING'S COLLEGE HOSPITAL NHS FOUNDATION TRUST","RBD01","Eastbourne District General Hospital - RXC02"]
[null,null,null,null,null,null,null,null,null,null,null,null,null,null,"QYG","CHESHIRE AND MERSEYSIDE STP",null,"QYG","CHESHIRE AND MERSEYSIDE STP",null,"QHM","R0B","SOUTH TYNESIDE AND SUNDERLAND NHS FOUNDATION TRUST","R0B0Q","South Tyneside District Hospital - R0B0Q",null,"RH5","KINGSTON HOSPITAL NHS FOUNDATION TRUST",null,"RH5","KINGSTON HOSPITAL NHS FOUNDATION TRUST","RBK02","Epsom Hospital - RVR50"]
[null,null,null,null,null,null,null,null,null,null,null,null,null,null,null,null,null,null,null,null,"QHM","R0B","SOUTH TYNESIDE AND SUNDERLAND NHS FOUNDATION TRUST","R0B0X","Sunderland Eye Infirmary – R0B0X",null,"RH8","LANCASHIRE TEACHING HOSPITALS NHS FOUNDATION TRUST",null,"RH8","LANCASHIRE TEACHING HOSPITALS NHS FOUNDATION TRUST","RBL14","Friarage Hospital Site - RTR45"]
[null,null,null,null,null,null,null,null,null,null,null,null,null,null,null,null,null,null,null,null,"QHM","R0B","SOUTH TYNESIDE AND SUNDERLAND NHS FOUNDATION TRUST","R0B01","Sunderland Royal Hospital – R0B01",null,"RHM","LEEDS TEACHING HOSPITALS NHS TRUST",null,"RHM","LEEDS TEACHING HOSPITALS NHS TRUST","RBN01","Frimley Park Hospital - RDU01"]
[null,null,null,null,null,null,null,null,null,null,null,null,null,null,null,null,null,null,null,null,"QHM","RTD","THE NEWCASTLE UPON TYNE HOSPITALS NHS FOUNDATION TRUST","RTD02","The Royal Victoria Infirmary - RTD02",null,"RHQ","LEWISHAM AND GREENWICH NHS TRUST",null,"RHQ","LEWISHAM AND GREENWICH NHS TRUST","RBS25","Furness General Hospital - RTXBU"]
[null,null,null,null,null,null,null,null,null,null,null,null,null,null,null,null,null,null,null,null,"QJ2","RFS","CHESTERFIELD ROYAL HOSPITAL NHS FOUNDATION TRUST","RFSDA","Chesterfield Royal Hospital - RFSDA",null,"RHU","LIVERPOOL UNIVERSITY HOSPITALS NHS FOUNDATION TRUST",null,"RHU","LIVERPOOL UNIVERSITY HOSPITALS NHS FOUNDATION TRUST","RBT20","George Eliot Hospital - Acute Services - RLT01"]
[null,null,null,null,null,null,null,null,null,null,null,null,null,null,null,null,null,null,null,null,"QJ2","RTG","UNIVERSITY HOSPITALS OF DERBY AND BURTON NHS FOUNDATION TRUST","RTG02","Queen's Hospital, Burton Upon Trent - RTG02",null,"RHW","LIVERPOOL WOMEN'S NHS FOUNDATION TRUST",null,"RHW","LIVERPOOL WOMEN'S NHS FOUNDATION TRUST","RBTXXX","Gloucestershire Royal Hospital - RTE03"]
[null,null,null,null,null,null,null,null,null,null,null,null,null,null,null,null,null,null,null,null,"QJ2","RTG","UNIVERSITY HOSPITALS OF DERBY AND BURTON NHS FOUNDATION TRUST","RTGFG","Royal Derby Hospital - RTGFG",null,"RJ1","LONDON NORTH WEST UNIVERSITY HEALTHCARE NHS TRUST",null,"RJ1","LONDON NORTH WEST UNIVERSITY HEALTHCARE NHS TRUST","RC971","Good Hope Hospital - RRK98"]
[null,null,null,null,null,null,null,null,null,null,null,null,null,null,null,null,null,null,null,null,"QJ2","RTG","UNIVERSITY HOSPITALS OF DERBY AND BURTON NHS FOUNDATION TRUST","RTG54","Samuel Johnson - RTG54",null,"RJ2","MAIDSTONE AND TUNBRIDGE WELLS NHS TRUST",null,"RJ2","MAIDSTONE AND TUNBRIDGE WELLS NHS TRUST","RC979","Grantham and District Hospital - RWDLP"]
[null,null,null,null,null,null,null,null,null,null,null,null,null,null,null,null,null,null,null,null,"QJ2","RTG","UNIVERSITY HOSPITALS OF DERBY AND BURTON NHS FOUNDATION TRUST","RTG50","Sir Robert Peel - RTG50",null,"RJ7","MANCHESTER UNIVERSITY NHS FOUNDATION TRUST",null,"RJ7","MANCHESTER UNIVERSITY NHS FOUNDATION TRUST","RCB55","Halton Hospital - RWWHG"]
[null,null,null,null,null,null,null,null,null,null,null,null,null,null,null,null,null,null,null,null,"QJG","RDE","EAST SUFFOLK AND NORTH ESSEX NHS FOUNDATION TRUST","RDEE2","Clacton and District Hospital - RDEE2",null,"RJC","MEDWAY NHS FOUNDATION TRUST",null,"RJC","MEDWAY NHS FOUNDATION TRUST","RCBCA","Harrogate District Hospital - RCD01"]
[null,null,null,null,null,null,null,null,null,null,null,null,null,null,null,null,null,null,null,null,"QJG","RDE","EAST SUFFOLK AND NORTH ESSEX NHS FOUNDATION TRUST","RDEE4","Colchester General Hospital - RDEE4",null,"RJE","MID AND SOUTH ESSEX NHS FOUNDATION TRUST",null,"RJE","MID AND SOUTH ESSEX NHS FOUNDATION TRUST","RCD01","Heartlands Hospital - RRK97"]
[null,null,null,null,null,null,null,null,null,null,null,null,null,null,null,null,null,null,null,null,"QJG","RDE","EAST SUFFOLK AND NORTH ESSEX NHS FOUNDATION TRUST","RDE03","Ipswich Hospital - RDE03",null,"RJL","MID CHESHIRE HOSPITALS NHS FOUNDATION TRUST",null,"RJL","MID CHESHIRE HOSPITALS NHS FOUNDATION TRUST","RCD02","Hemel Hempstead Hospital - RWG08"]
[null,null,null,null,null,null,null,null,null,null,null,null,null,null,null,null,null,null,null,null,"QJG","RDE","EAST SUFFOLK AND NORTH ESSEX NHS FOUNDATION TRUST","RDEEE","The Fryatt Hospital and Mayflower Medical Centre - RDEEE",null,"RJN","MID YORKSHIRE HOSPITALS NHS TRUST",null,"RJN","MID YORKSHIRE HOSPITALS NHS TRUST","RCDXXX","Hereford County Hospital - RLQ01"]
[null,null,null,null,null,null,null,null,null,null,null,null,null,null,null,null,null,null,null,null,"QJG","RDE","EAST SUFFOLK AND NORTH ESSEX NHS FOUNDATION TRUST","RDE81","UTC-Colechester - RDE81",null,"RJZ","MILTON KEYNES UNIVERSITY HOSPITAL NHS FOUNDATION TRUST",null,"RJZ","MILTON KEYNES UNIVERSITY HOSPITAL NHS FOUNDATION TRUST","RCF22","Hillingdon Hospital - RAS01"]
[null,null,null,null,null,null,null,null,null,null,null,null,null,null,null,null,null,null,null,null,"QJG","RGR","WEST SUFFOLK NHS FOUNDATION TRUST","RGR50","West Suffolk Hospital - RGR50",null,"RK5","MOORFIELDS EYE HOSPITAL NHS FOUNDATION TRUST",null,"RK5","MOORFIELDS EYE HOSPITAL NHS FOUNDATION TRUST","RCUEF","Hinchingbrooke Hospital - RGN90"]
[null,null,null,null,null,null,null,null,null,null,null,null,null,null,null,null,null,null,null,null,"QJK","RH8","ROYAL DEVON UNIVERSITY HEALTHCARE NHS FOUNDATION TRUST","RH880","North Devon District Hospital - RH880",null,"RK9","NORFOLK AND NORWICH UNIVERSITY HOSPITALS NHS FOUNDATION TRUST",null,"RK9","NORFOLK AND NORWICH UNIVERSITY HOSPITALS NHS FOUNDATION TRUST","RCX70","Homerton University Hospital - RQXM1"]
[null,null,null,null,null,null,null,null,null,null,null,null,null,null,null,null,null,null,null,null,"QJK","RH8","ROYAL DEVON UNIVERSITY HEALTHCARE NHS FOUNDATION TRUST","RH801","Royal Devon and Exeter Hospital (Wonford) - RH801",null,"RKB","NORTH BRISTOL NHS TRUST",null,"RKB","NORTH BRISTOL NHS TRUST","RD130","Horton General Hospital - RTH05"]
[null,null,null,null,null,null,null,null,null,null,null,null,null,null,null,null,null,null,null,null,"QJK","RH8","ROYAL DEVON UNIVERSITY HEALTHCARE NHS FOUNDATION TRUST","RH8XXX","WiC_MIU - RH8XXX",null,"RKE","NORTH CUMBRIA INTEGRATED CARE NHS FOUNDATION TRUST",null,"RKE","NORTH CUMBRIA INTEGRATED CARE NHS FOUNDATION TRUST","RD816","Hospital Of St Cross - RKB03"]
[null,null,null,null,null,null,null,null,null,null,null,null,null,null,null,null,null,null,null,null,"QJK","RA9","TORBAY AND SOUTH DEVON NHS FOUNDATION TRUST","RA901","Torbay Hospital - RA901",null,"RL4","NORTH MIDDLESEX UNIVERSITY HOSPITAL NHS TRUST",null,"RL4","NORTH MIDDLESEX UNIVERSITY HOSPITAL NHS TRUST","RDE03","Huddersfield Royal Infirmary - RWY01"]
[null,null,null,null,null,null,null,null,null,null,null,null,null,null,null,null,null,null,null,null,"QJK","RK9","UNIVERSITY HOSPITALS PLYMOUTH NHS TRUST","RK950","Derriford Hospital - RK950",null,"RLQ","NORTH TEES AND HARTLEPOOL NHS FOUNDATION TRUST",null,"RLQ","NORTH TEES AND HARTLEPOOL NHS FOUNDATION TRUST","RDE81","Hull Royal Infirmary - RWA01"]
[null,null,null,null,null,null,null,null,null,null,null,null,null,null,null,null,null,null,null,null,"QJK","RK9","UNIVERSITY HOSPITALS PLYMOUTH NHS TRUST","RK9XXX","WiC_MIU - RK9XXX",null,"RLT","NORTH WEST ANGLIA NHS FOUNDATION TRUST",null,"RLT","NORTH WEST ANGLIA NHS FOUNDATION TRUST","RDEE2","Ipswich Hospital - RDE03"]
[null,null,null,null,null,null,null,null,null,null,null,null,null,null,null,null,null,null,null,null,"QJM","RWD","UNITED LINCOLNSHIRE HOSPITALS NHS TRUST","RWDLP","Grantham and District Hospital - RWDLP",null,"RM1","NORTHAMPTON GENERAL HOSPITAL NHS TRUST",null,"RM1","NORTHAMPTON GENERAL HOSPITAL NHS TRUST","RDEE4","James Paget University Hospital - RGP75"]
[null,null,null,null,null,null,null,null,null,null,null,null,null,null,null,null,null,null,null,null,"QJM","RWD","UNITED LINCOLNSHIRE HOSPITALS NHS TRUST","RWDDA","Lincoln County Hospital - RWDDA",null,"RMC","NORTHERN LINCOLNSHIRE AND GOOLE NHS FOUNDATION TRUST",null,"RMC","NORTHERN LINCOLNSHIRE AND GOOLE NHS FOUNDATION TRUST","RDEEE","John Radcliffe Hospital - RTH08"]
[null,null,null,null,null,null,null,null,null,null,null,null,null,null,null,null,null,null,null,null,"QJM","RWD","UNITED LINCOLNSHIRE HOSPITALS NHS TRUST","RWDLA","Pilgrim Hospital - RWDLA",null,"RMP","NORTHUMBRIA HEALTHCARE NHS FOUNDATION TRUST",null,"RMP","NORTHUMBRIA HEALTHCARE NHS FOUNDATION TRUST","RDU01","Kent and Canterbury Hospital - RVVKC"]
[null,null,null,null,null,null,null,null,null,null,null,null,null,null,null,null,null,null,null,null,"QK1","RWE","UNIVERSITY HOSPITALS OF LEICESTER NHS TRUST","RWEAA","Leicester Royal Infirmary - RWEAA",null,"RN3","NOTTINGHAM UNIVERSITY HOSPITALS NHS TRUST",null,"RN3","NOTTINGHAM UNIVERSITY HOSPITALS NHS TRUST","RDU50","Kettering General Hospital - RNQ51"]
[null,null,null,null,null,null,null,null,null,null,null,null,null,null,null,null,null,null,null,null,"QKK","RJ1","GUY'S AND ST THOMAS' NHS FOUNDATION TRUST","RJ122","St Thomas' Hospital - RJ122",null,"RN5","OXFORD UNIVERSITY HOSPITALS NHS FOUNDATION TRUST",null,"RN5","OXFORD UNIVERSITY HOSPITALS NHS FOUNDATION TRUST","REF01","Kidderminster Hospital - RWP31"]
[null,null,null,null,null,null,null,null,null,null,null,null,null,null,null,null,null,null,null,null,"QKK","RJ1","GUY'S AND ST THOMAS' NHS FOUNDATION TRUST","RJ1XXX","WiC_MIU - RJ1XXX",null,"RN7","PORTSMOUTH HOSPITALS UNIVERSITY NATIONAL HEALTH SERVICE TRUST",null,"RN7","PORTSMOUTH HOSPITALS UNIVERSITY NATIONAL HEALTH SERVICE TRUST","REF12","King Edward Vii Hospital - RHW03"]
[null,null,null,null,null,null,null,null,null,null,null,null,null,null,null,null,null,null,null,null,"QKK","RJZ","KING'S COLLEGE HOSPITAL NHS FOUNDATION TRUST","RJZ01","King's College Hospital (Denmark Hill) - RJZ01",null,"RNA","QUEEN VICTORIA HOSPITAL NHS FOUNDATION TRUST",null,"RNA","QUEEN VICTORIA HOSPITAL NHS FOUNDATION TRUST","REM21","King George Hospital - RF4DG"]
[null,null,null,null,null,null,null,null,null,null,null,null,null,null,null,null,null,null,null,null,"QKK","RJZ","KING'S COLLEGE HOSPITAL NHS FOUNDATION TRUST","RJZ30","Princess Royal University Hospital - RJZ30",null,"RNN","ROYAL BERKSHIRE NHS FOUNDATION TRUST",null,"RNN","ROYAL BERKSHIRE NHS FOUNDATION TRUST","REMRQ","King's College Hospital (Denmark Hill) - RJZ01"]
[null,null,null,null,null,null,null,null,null,null,null,null,null,null,null,null,null,null,null,null,"QKK","RJ2","LEWISHAM AND GREENWICH NHS TRUST","RJ231","Queen Elizabeth Hospital - RJ231",null,"RNQ","ROYAL CORNWALL HOSPITALS NHS TRUST",null,"RNQ","ROYAL CORNWALL HOSPITALS NHS TRUST","REP01","King's Mill Hospital - RK5BC"]
[null,null,null,null,null,null,null,null,null,null,null,null,null,null,null,null,null,null,null,null,"QKK","RJ2","LEWISHAM AND GREENWICH NHS TRUST","RJ224","University Hospital Lewisham - RJ224",null,"RNS","ROYAL DEVON UNIVERSITY HEALTHCARE NHS FOUNDATION TRUST",null,"RNS","ROYAL DEVON UNIVERSITY HEALTHCARE NHS FOUNDATION TRUST","RF4DG","Kingston Hospital - RAX01"]
[null,null,null,null,null,null,null,null,null,null,null,null,null,null,null,null,null,null,null,null,"QKS","RN7","DARTFORD AND GRAVESHAM NHS TRUST","RN707","Darent Valley Hospital - RN707",null,"RNZ","ROYAL FREE LONDON NHS FOUNDATION TRUST",null,"RNZ","ROYAL FREE LONDON NHS FOUNDATION TRUST","RF4QH","Leeds General Infirmary - RR801"]
[null,null,null,null,null,null,null,null,null,null,null,null,null,null,null,null,null,null,null,null,"QKS","RVV","EAST KENT HOSPITALS UNIVERSITY NHS FOUNDATION TRUST","RVVKC","Kent and Canterbury Hospital - RVVKC",null,"RP5","ROYAL UNITED HOSPITALS BATH NHS FOUNDATION TRUST",null,"RP5","ROYAL UNITED HOSPITALS BATH NHS FOUNDATION TRUST","RFFAA","Leicester Royal Infirmary - RWEAA"]
[null,null,null,null,null,null,null,null,null,null,null,null,null,null,null,null,null,null,null,null,"QKS","RVV","EAST KENT HOSPITALS UNIVERSITY NHS FOUNDATION TRUST","RVV09","Queen Elizabeth The Queen Mother Hospital - RVV09",null,"RP6","SALISBURY NHS FOUNDATION TRUST",null,"RP6","SALISBURY NHS FOUNDATION TRUST","RFRPA","Leighton Hospital - RBT20"]
[null,null,null,null,null,null,null,null,null,null,null,null,null,null,null,null,null,null,null,null,"QKS","RWF","MAIDSTONE AND TUNBRIDGE WELLS NHS TRUST","RWF03","Maidstone District General Hospital - RWF03",null,"RPA","SANDWELL AND WEST BIRMINGHAM HOSPITALS NHS TRUST",null,"RPA","SANDWELL AND WEST BIRMINGHAM HOSPITALS NHS TRUST","RFSDA","Lincoln County Hospital - RWDDA"]
[null,null,null,null,null,null,null,null,null,null,null,null,null,null,null,null,null,null,null,null,"QKS","RWF","MAIDSTONE AND TUNBRIDGE WELLS NHS TRUST","RWFTW","The Tunbridge Wells Hospital - RWFTW",null,"RPC","SHEFFIELD CHILDREN'S NHS FOUNDATION TRUST",null,"RPC","SHEFFIELD CHILDREN'S NHS FOUNDATION TRUST","RGN49","Lister Hospital - RWH01"]
[null,null,null,null,null,null,null,null,null,null,null,null,null,null,null,null,null,null,null,null,"QKS","RWF","MAIDSTONE AND TUNBRIDGE WELLS NHS TRUST","RWFXXX","WiC_MIU - RWFXXX",null,"RQ3","SHEFFIELD TEACHING HOSPITALS NHS FOUNDATION TRUST",null,"RQ3","SHEFFIELD TEACHING HOSPITALS NHS FOUNDATION TRUST","RGN80","Liverpool Womens Hospital - REP01"]
[null,null,null,null,null,null,null,null,null,null,null,null,null,null,null,null,null,null,null,null,"QKS","RPA","MEDWAY NHS FOUNDATION TRUST","RPA02","Medway Maritime Hospital - RPA02",null,"RQM","SHERWOOD FOREST HOSPITALS NHS FOUNDATION TRUST",null,"RQM","SHERWOOD FOREST HOSPITALS NHS FOUNDATION TRUST","RGN90","Luton and Dunstable Hospital - RC971"]
[null,null,null,null,null,null,null,null,null,null,null,null,null,null,null,null,null,null,null,null,"QM7","RWH","EAST AND NORTH HERTFORDSHIRE NHS TRUST","RWH01","Lister Hospital - RWH01",null,"RQW","SOMERSET NHS FOUNDATION TRUST",null,"RQW","SOMERSET NHS FOUNDATION TRUST","RGP75","Macclesfield District General Hospital - RJN71"]
[null,null,null,null,null,null,null,null,null,null,null,null,null,null,null,null,null,null,null,null,"QM7","RWH","EAST AND NORTH HERTFORDSHIRE NHS TRUST","RWH20","Queen Elizabeth I I Hospital - RWH20",null,"RQX","SOUTH TEES HOSPITALS NHS FOUNDATION TRUST",null,"RQX","SOUTH TEES HOSPITALS NHS FOUNDATION TRUST","RGR50","Maidstone District General Hospital - RWF03"]
[null,null,null,null,null,null,null,null,null,null,null,null,null,null,null,null,null,null,null,null,"QM7","RQW","THE PRINCESS ALEXANDRA HOSPITAL NHS TRUST","RQWG0","Princess Alexandra Hospital - RQWG0",null,"RR7","SOUTH TYNESIDE AND SUNDERLAND NHS FOUNDATION TRUST",null,"RR7","SOUTH TYNESIDE AND SUNDERLAND NHS FOUNDATION TRUST","RH5A8","Manchester Royal Eye Hospital - R0A04"]
[null,null,null,null,null,null,null,null,null,null,null,null,null,null,null,null,null,null,null,null,"QM7","RWG","WEST HERTFORDSHIRE TEACHING HOSPITALS NHS TRUST","RWG08","Hemel Hempstead Hospital - RWG08",null,"RR8","SOUTH WARWICKSHIRE NHS FOUNDATION TRUST",null,"RR8","SOUTH WARWICKSHIRE NHS FOUNDATION TRUST","RH5XXX","Manchester Royal Infirmary - R0A02"]
[null,null,null,null,null,null,null,null,null,null,null,null,null,null,null,null,null,null,null,null,"QM7","RWG","WEST HERTFORDSHIRE TEACHING HOSPITALS NHS TRUST","RWG02","Watford General Hospital - RWG02",null,"RRF","SOUTHPORT AND ORMSKIRK HOSPITAL NHS TRUST",null,"RRF","SOUTHPORT AND ORMSKIRK HOSPITAL NHS TRUST","RH801","Manor Hospital - RBK02"]
[null,null,null,null,null,null,null,null,null,null,null,null,null,null,null,null,null,null,null,null,"QMF","RF4","BARKING, HAVERING AND REDBRIDGE UNIVERSITY HOSPITALS NHS TRUST","RF4DG","King George Hospital - RF4DG",null,"RRK","ST GEORGE'S UNIVERSITY HOSPITALS NHS FOUNDATION TRUST",null,"RRK","ST GEORGE'S UNIVERSITY HOSPITALS NHS FOUNDATION TRUST","RH880","Medway Maritime Hospital - RPA02"]
[null,null,null,null,null,null,null,null,null,null,null,null,null,null,null,null,null,null,null,null,"QMF","RF4","BARKING, HAVERING AND REDBRIDGE UNIVERSITY HOSPITALS NHS TRUST","RF4QH","Queen's Hospital - RF4QH",null,"RRV","ST HELENS AND KNOWSLEY TEACHING HOSPITALS NHS TRUST",null,"RRV","ST HELENS AND KNOWSLEY TEACHING HOSPITALS NHS TRUST","RH8XXX","Mid Essex Hospital - RAJ32"]
[null,null,null,null,null,null,null,null,null,null,null,null,null,null,null,null,null,null,null,null,"QMF","R1H","BARTS HEALTH NHS TRUST","R1HNH","Newham General Hospital - R1HNH",null,"RTD","STOCKPORT NHS FOUNDATION TRUST",null,"RTD","STOCKPORT NHS FOUNDATION TRUST","RHM01","Milton Keynes Hospital - RD816"]
[null,null,null,null,null,null,null,null,null,null,null,null,null,null,null,null,null,null,null,null,"QMF","R1H","BARTS HEALTH NHS TRUST","R1HM0","St Bartholomew's Hospital - R1HM0",null,"RTE","SURREY AND SUSSEX HEALTHCARE NHS TRUST",null,"RTE","SURREY AND SUSSEX HEALTHCARE NHS TRUST","RHQHH","Montagu Hospital - RP5MM"]
[null,null,null,null,null,null,null,null,null,null,null,null,null,null,null,null,null,null,null,null,"QMF","R1H","BARTS HEALTH NHS TRUST","R1H12","The Royal London Hospital - R1H12",null,"RTF","TAMESIDE AND GLOSSOP INTEGRATED CARE NHS FOUNDATION TRUST",null,"RTF","TAMESIDE AND GLOSSOP INTEGRATED CARE NHS FOUNDATION TRUST","RHQNG","Moorfields Eye Hospital (City Road) - RP601"]
[null,null,null,null,null,null,null,null,null,null,null,null,null,null,null,null,null,null,null,null,"QMF","R1H","BARTS HEALTH NHS TRUST","R1HKH","Whipps Cross University Hospital - R1HKH",null,"RTG","THE DUDLEY GROUP NHS FOUNDATION TRUST",null,"RTG","THE DUDLEY GROUP NHS FOUNDATION TRUST","RHQXXX","Mount Vernon Hospital Site - RAS02"]
[null,null,null,null,null,null,null,null,null,null,null,null,null,null,null,null,null,null,null,null,"QMF","R1H","BARTS HEALTH NHS TRUST","R1HXXX","WiC_MIU - R1HXXX",null,"RTH","THE HILLINGDON HOSPITALS NHS FOUNDATION TRUST",null,"RTH","THE HILLINGDON HOSPITALS NHS FOUNDATION TRUST","RHU03","Musgrove Park Hospital - RH5A8"]
[null,null,null,null,null,null,null,null,null,null,null,null,null,null,null,null,null,null,null,null,"QMF","RQX","HOMERTON HEALTHCARE NHS FOUNDATION TRUST","RQXM1","Homerton University Hospital - RQXM1",null,"RTK","THE NEWCASTLE UPON TYNE HOSPITALS NHS FOUNDATION TRUST",null,"RTK","THE NEWCASTLE UPON TYNE HOSPITALS NHS FOUNDATION TRUST","RHUXXX","New Cross Hospital - RL403"]
[null,null,null,null,null,null,null,null,null,null,null,null,null,null,null,null,null,null,null,null,"QMJ","RP6","MOORFIELDS EYE HOSPITAL NHS FOUNDATION TRUST","RP601","Moorfields Eye Hospital (City Road) - RP601",null,"RTP","THE PRINCESS ALEXANDRA HOSPITAL NHS TRUST",null,"RTP","THE PRINCESS ALEXANDRA HOSPITAL NHS TRUST","RHW01","Newham General Hospital - R1HNH"]
[null,null,null,null,null,null,null,null,null,null,null,null,null,null,null,null,null,null,null,null,"QMJ","RAP","NORTH MIDDLESEX UNIVERSITY HOSPITAL NHS TRUST","RAPNM","North Middlesex Hospital - RAPNM",null,"RTR","THE QUEEN ELIZABETH HOSPITAL, KING'S LYNN, NHS FOUNDATION TRUST",null,"RTR","THE QUEEN ELIZABETH HOSPITAL, KING'S LYNN, NHS FOUNDATION TRUST","RHW03","Norfolk and Norwich University Hospital - RM102"]
[null,null,null,null,null,null,null,null,null,null,null,null,null,null,null,null,null,null,null,null,"QMJ","RAL","ROYAL FREE LONDON NHS FOUNDATION TRUST","RAL26","Barnet Hospital - RAL26",null,"RTX","THE ROTHERHAM NHS FOUNDATION TRUST",null,"RTX","THE ROTHERHAM NHS FOUNDATION TRUST","RJ122","North Devon District Hospital - RH880"]
[null,null,null,null,null,null,null,null,null,null,null,null,null,null,null,null,null,null,null,null,"QMJ","RAL","ROYAL FREE LONDON NHS FOUNDATION TRUST","RALC7","Chase Farm Hospital - RALC7",null,"RVJ","THE ROYAL WOLVERHAMPTON NHS TRUST",null,"RVJ","THE ROYAL WOLVERHAMPTON NHS TRUST","RJ1XXX","North Manchester General Hospital -R0A66"]
[null,null,null,null,null,null,null,null,null,null,null,null,null,null,null,null,null,null,null,null,"QMJ","RAL","ROYAL FREE LONDON NHS FOUNDATION TRUST","RAL01","Royal Free Hospital - RAL01",null,"RVR","THE SHREWSBURY AND TELFORD HOSPITAL NHS TRUST",null,"RVR","THE SHREWSBURY AND TELFORD HOSPITAL NHS TRUST","RJ224","North Middlesex Hospital - RAPNM"]
[null,null,null,null,null,null,null,null,null,null,null,null,null,null,null,null,null,null,null,null,"QMJ","RRV","UNIVERSITY COLLEGE LONDON HOSPITALS NHS FOUNDATION TRUST","RRV03","University College Hospital - RRV03",null,"RVV","TORBAY AND SOUTH DEVON NHS FOUNDATION TRUST",null,"RVV","TORBAY AND SOUTH DEVON NHS FOUNDATION TRUST","RJ231","Northampton General Hospital (Acute) - RNS01"]
[null,null,null,null,null,null,null,null,null,null,null,null,null,null,null,null,null,null,null,null,"QMJ","RKE","WHITTINGTON HEALTH NHS TRUST","RKEQ4","The Whittington Hospital - RKEQ4",null,"RVW","UNITED LINCOLNSHIRE HOSPITALS NHS TRUST",null,"RVW","UNITED LINCOLNSHIRE HOSPITALS NHS TRUST","RJ701","Northern General Hospital - RHQNG"]
[null,null,null,null,null,null,null,null,null,null,null,null,null,null,null,null,null,null,null,null,"QMM","RGP","JAMES PAGET UNIVERSITY HOSPITALS NHS FOUNDATION TRUST","RGP75","James Paget University Hospital - RGP75",null,"RVY","UNIVERSITY COLLEGE LONDON HOSPITALS NHS FOUNDATION TRUST",null,"RVY","UNIVERSITY COLLEGE LONDON HOSPITALS NHS FOUNDATION TRUST","RJC02","Northwick Park Hospital - R1K01"]
[null,null,null,null,null,null,null,null,null,null,null,null,null,null,null,null,null,null,null,null,"QMM","RM1","NORFOLK AND NORWICH UNIVERSITY HOSPITALS NHS FOUNDATION TRUST","RM102","Norfolk and Norwich University Hospital - RM102",null,"RWA","UNIVERSITY HOSPITAL SOUTHAMPTON NHS FOUNDATION TRUST",null,"RWA","UNIVERSITY HOSPITAL SOUTHAMPTON NHS FOUNDATION TRUST","RJE01","Nottingham University Hospitals NHS Trust - Queen's Medical Centre Campus - RX1RA"]
[null,null,null,null,null,null,null,null,null,null,null,null,null,null,null,null,null,null,null,null,"QMM","RCX","THE QUEEN ELIZABETH HOSPITAL, KING'S LYNN, NHS FOUNDATION TRUST","RCX70","The Queen Elizabeth Hospital - RCX70",null,"RWD","UNIVERSITY HOSPITALS BIRMINGHAM NHS FOUNDATION TRUST",null,"RWD","UNIVERSITY HOSPITALS BIRMINGHAM NHS FOUNDATION TRUST","RJE09","Ormskirk and District General Hospital - RVY02"]
[null,null,null,null,null,null,null,null,null,null,null,null,null,null,null,null,null,null,null,null,"QNC","RJE","UNIVERSITY HOSPITALS OF NORTH MIDLANDS NHS TRUST","RJE09","County Hospital - RJE09",null,"RWE","UNIVERSITY HOSPITALS BRISTOL AND WESTON NHS FOUNDATION TRUST",null,"RWE","UNIVERSITY HOSPITALS BRISTOL AND WESTON NHS FOUNDATION TRUST","RJEXXX","Peterborough City Hospital - RGN80"]
[null,null,null,null,null,null,null,null,null,null,null,null,null,null,null,null,null,null,null,null,"QNC","RJE","UNIVERSITY HOSPITALS OF NORTH MIDLANDS NHS TRUST","RJE01","Royal Stoke University Hospital - RJE01",null,"RWF","UNIVERSITY HOSPITALS COVENTRY AND WARWICKSHIRE NHS TRUST",null,"RWF","UNIVERSITY HOSPITALS COVENTRY AND WARWICKSHIRE NHS TRUST","RJL30","Pilgrim Hospital - RWDLA"]
[null,null,null,null,null,null,null,null,null,null,null,null,null,null,null,null,null,null,null,null,"QNC","RJE","UNIVERSITY HOSPITALS OF NORTH MIDLANDS NHS TRUST","RJEXXX","WiC_MIU - RJEXXX",null,"RWG","UNIVERSITY HOSPITALS DORSET NHS FOUNDATION TRUST",null,"RWG","UNIVERSITY HOSPITALS DORSET NHS FOUNDATION TRUST","RJL32","Pinderfields General Hospital - RXF05"]
[null,null,null,null,null,null,null,null,null,null,null,null,null,null,null,null,null,null,null,null,"QNQ","RDU","FRIMLEY HEALTH NHS FOUNDATION TRUST","RDU01","Frimley Park Hospital - RDU01",null,"RWH","UNIVERSITY HOSPITALS OF DERBY AND BURTON NHS FOUNDATION TRUST",null,"RWH","UNIVERSITY HOSPITALS OF DERBY AND BURTON NHS FOUNDATION TRUST","RJN71","Pontefract General Infirmary - RXF03"]
[null,null,null,null,null,null,null,null,null,null,null,null,null,null,null,null,null,null,null,null,"QNQ","RDU","FRIMLEY HEALTH NHS FOUNDATION TRUST","RDU50","Wexham Park Hospital - RDU50",null,"RWJ","UNIVERSITY HOSPITALS OF LEICESTER NHS TRUST",null,"RWJ","UNIVERSITY HOSPITALS OF LEICESTER NHS TRUST","RJZ01","Poole Hospital - R0D01"]
[null,null,null,null,null,null,null,null,null,null,null,null,null,null,null,null,null,null,null,null,"QNX","RXC","EAST SUSSEX HEALTHCARE NHS TRUST","RXC01","Conquest Hospital - RXC01",null,"RWP","UNIVERSITY HOSPITALS OF MORECAMBE BAY NHS FOUNDATION TRUST",null,"RWP","UNIVERSITY HOSPITALS OF MORECAMBE BAY NHS FOUNDATION TRUST","RJZ30","Princess Alexandra Hospital - RQWG0"]
[null,null,null,null,null,null,null,null,null,null,null,null,null,null,null,null,null,null,null,null,"QNX","RXC","EAST SUSSEX HEALTHCARE NHS TRUST","RXC02","Eastbourne District General Hospital - RXC02",null,"RWW","UNIVERSITY HOSPITALS OF NORTH MIDLANDS NHS TRUST",null,"RWW","UNIVERSITY HOSPITALS OF NORTH MIDLANDS NHS TRUST","RK5BC","Princess Royal Hospital - N6J7V"]
[null,null,null,null,null,null,null,null,null,null,null,null,null,null,null,null,null,null,null,null,"QNX","RPC","QUEEN VICTORIA HOSPITAL NHS FOUNDATION TRUST","RPC","QUEEN VICTORIA HOSPITAL NHS FOUNDATION TRUST",null,"RWY","UNIVERSITY HOSPITALS PLYMOUTH NHS TRUST",null,"RWY","UNIVERSITY HOSPITALS PLYMOUTH NHS TRUST","RK5XXX","Princess Royal University Hospital - RJZ30"]
[null,null,null,null,null,null,null,null,null,null,null,null,null,null,null,null,null,null,null,null,"QNX","RYR","UNIVERSITY HOSPITALS SUSSEX NHS FOUNDATION TRUST","N6J7V","Princess Royal Hospital - N6J7V",null,"RX1","UNIVERSITY HOSPITALS SUSSEX NHS FOUNDATION TRUST",null,"RX1","UNIVERSITY HOSPITALS SUSSEX NHS FOUNDATION TRUST","RK950","Queen Alexandra Hospital - RHU03"]
[null,null,null,null,null,null,null,null,null,null,null,null,null,null,null,null,null,null,null,null,"QNX","RYR","UNIVERSITY HOSPITALS SUSSEX NHS FOUNDATION TRUST","E0A3H","Royal Sussex County Hospital - E0A3H",null,"RXC","WALSALL HEALTHCARE NHS TRUST",null,"RXC","WALSALL HEALTHCARE NHS TRUST","RK9XXX","Queen Elizabeth Hospital - RJ231"]
[null,null,null,null,null,null,null,null,null,null,null,null,null,null,null,null,null,null,null,null,"QNX","RYR","UNIVERSITY HOSPITALS SUSSEX NHS FOUNDATION TRUST","RYR16","St Richard's Hospital - RYR16",null,"RXF","WARRINGTON AND HALTON TEACHING HOSPITALS NHS FOUNDATION TRUST",null,"RXF","WARRINGTON AND HALTON TEACHING HOSPITALS NHS FOUNDATION TRUST","RKB02","Queen Elizabeth Hospital - RR7EN"]
[null,null,null,null,null,null,null,null,null,null,null,null,null,null,null,null,null,null,null,null,"QNX","RYR","UNIVERSITY HOSPITALS SUSSEX NHS FOUNDATION TRUST","X5M8P","Sussex Eye Hospital - X5M8P",null,"RXK","WEST HERTFORDSHIRE TEACHING HOSPITALS NHS TRUST",null,"RXK","WEST HERTFORDSHIRE TEACHING HOSPITALS NHS TRUST","RKB03","Queen Elizabeth Hospital Birmingham - RRK15"]
[null,null,null,null,null,null,null,null,null,null,null,null,null,null,null,null,null,null,null,null,"QNX","RYR","UNIVERSITY HOSPITALS SUSSEX NHS FOUNDATION TRUST","G0W1C","The Royal Alexandra Children's Hospital - G0W1C",null,"RXL","WEST SUFFOLK NHS FOUNDATION TRUST",null,"RXL","WEST SUFFOLK NHS FOUNDATION TRUST","RKBXXX","Queen Elizabeth I I Hospital - RWH20"]
[null,null,null,null,null,null,null,null,null,null,null,null,null,null,null,null,null,null,null,null,"QNX","RYR","UNIVERSITY HOSPITALS SUSSEX NHS FOUNDATION TRUST","RYR18","Worthing Hospital - RYR18",null,"RXN","WHITTINGTON HEALTH NHS TRUST",null,"RXN","WHITTINGTON HEALTH NHS TRUST","RKEQ4","Queen Elizabeth The Queen Mother Hospital - RVV09"]
[null,null,null,null,null,null,null,null,null,null,null,null,null,null,null,null,null,null,null,null,"QOC","RXW","THE SHREWSBURY AND TELFORD HOSPITAL NHS TRUST","RXWAS","Royal Shrewsbury Hospital - RXWAS",null,"RXP","WIRRAL UNIVERSITY TEACHING HOSPITAL NHS FOUNDATION TRUST",null,"RXP","WIRRAL UNIVERSITY TEACHING HOSPITAL NHS FOUNDATION TRUST","RL403","QUEEN VICTORIA HOSPITAL NHS FOUNDATION TRUST"]
[null,null,null,null,null,null,null,null,null,null,null,null,null,null,null,null,null,null,null,null,"QOC","RXW","THE SHREWSBURY AND TELFORD HOSPITAL NHS TRUST","RXWAT","The Princess Royal Hospital - RXWAT",null,"RXQ","WORCESTERSHIRE ACUTE HOSPITALS NHS TRUST",null,"RXQ","WORCESTERSHIRE ACUTE HOSPITALS NHS TRUST","RLQ01","Queen's Hospital - RF4QH"]
[null,null,null,null,null,null,null,null,null,null,null,null,null,null,null,null,null,null,null,null,"QOP","RMC","BOLTON NHS FOUNDATION TRUST","RMC01","Royal Bolton Hospital - RMC01",null,"RXR","WRIGHTINGTON, WIGAN AND LEIGH NHS FOUNDATION TRUST",null,"RXR","WRIGHTINGTON, WIGAN AND LEIGH NHS FOUNDATION TRUST","RLT01","Queen's Hospital, Burton Upon Trent - RTG02"]
[null,null,null,null,null,null,null,null,null,null,null,null,null,null,null,null,null,null,null,null,"QOP","R0A","MANCHESTER UNIVERSITY NHS FOUNDATION TRUST","R0A04","Manchester Royal Eye Hospital - R0A04",null,"RXW","WYE VALLEY NHS TRUST",null,"RXW","WYE VALLEY NHS TRUST","RM102","Ripon and District Community Hospital - RCD02"]
[null,null,null,null,null,null,null,null,null,null,null,null,null,null,null,null,null,null,null,null,"QOP","R0A","MANCHESTER UNIVERSITY NHS FOUNDATION TRUST","R0A02","Manchester Royal Infirmary - R0A02",null,"RYJ","YEOVIL DISTRICT HOSPITAL NHS FOUNDATION TRUST",null,"RYJ","YEOVIL DISTRICT HOSPITAL NHS FOUNDATION TRUST","RMC01","Rotherham District General Hospital - RFRPA"]
[null,null,null,null,null,null,null,null,null,null,null,null,null,null,null,null,null,null,null,null,"QOP","R0A","MANCHESTER UNIVERSITY NHS FOUNDATION TRUST","R0A66","North Manchester General Hospital -R0A66",null,"RYR","YORK AND SCARBOROUGH TEACHING HOSPITALS NHS FOUNDATION TRUST",null,"RYR","YORK AND SCARBOROUGH TEACHING HOSPITALS NHS FOUNDATION TRUST","RMP01","Royal Albert Edward Infirmary - RRF02"]
[null,null,null,null,null,null,null,null,null,null,null,null,null,null,null,null,null,null,null,null,"QOP","R0A","MANCHESTER UNIVERSITY NHS FOUNDATION TRUST","R0A03","Royal Manchester Children's Hospital - R0A03",null,null,null,null,null,null,"RN325","Royal Berkshire Hospital - RHW01"]
[null,null,null,null,null,null,null,null,null,null,null,null,null,null,null,null,null,null,null,null,"QOP","R0A","MANCHESTER UNIVERSITY NHS FOUNDATION TRUST","R0A09","Trafford General Hospital - R0A09",null,null,null,null,null,null,"RN3TC","Royal Blackburn Hospital - RXR20"]
[null,null,null,null,null,null,null,null,null,null,null,null,null,null,null,null,null,null,null,null,"QOP","R0A","MANCHESTER UNIVERSITY NHS FOUNDATION TRUST","R0A07","Wythenshawe Hospital - R0A07",null,null,null,null,null,null,"RN506","Royal Bolton Hospital - RMC01"]
[null,null,null,null,null,null,null,null,null,null,null,null,null,null,null,null,null,null,null,null,"QOP","RWJ","STOCKPORT NHS FOUNDATION TRUST","RWJ09","Stepping Hill Hospital - RWJ09",null,null,null,null,null,null,"RN541","Royal Bourenmouth Hospital - R0D02"]
[null,null,null,null,null,null,null,null,null,null,null,null,null,null,null,null,null,null,null,null,"QOP","RMP","TAMESIDE AND GLOSSOP INTEGRATED CARE NHS FOUNDATION TRUST","RMP01","Tameside General Hospital - RMP01",null,null,null,null,null,null,"RN542","Royal Cornwall Hospital (Treliske) - REF12"]
[null,null,null,null,null,null,null,null,null,null,null,null,null,null,null,null,null,null,null,null,"QOP","RRF","WRIGHTINGTON, WIGAN AND LEIGH NHS FOUNDATION TRUST","RRF02","Royal Albert Edward Infirmary - RRF02",null,null,null,null,null,null,"RN707","Royal Derby Hospital - RTGFG"]
[null,null,null,null,null,null,null,null,null,null,null,null,null,null,null,null,null,null,null,null,"QOQ","RCD","HARROGATE AND DISTRICT NHS FOUNDATION TRUST","RCD01","Harrogate District Hospital - RCD01",null,null,null,null,null,null,"RNA01","Royal Devon and Exeter Hospital (Wonford) - RH801"]
[null,null,null,null,null,null,null,null,null,null,null,null,null,null,null,null,null,null,null,null,"QOQ","RCD","HARROGATE AND DISTRICT NHS FOUNDATION TRUST","RCD02","Ripon and District Community Hospital - RCD02",null,null,null,null,null,null,"RNN62","Royal Free Hospital - RAL01"]
[null,null,null,null,null,null,null,null,null,null,null,null,null,null,null,null,null,null,null,null,"QOQ","RCD","HARROGATE AND DISTRICT NHS FOUNDATION TRUST","RCDXXX","WiC_MIU - RCDXXX",null,null,null,null,null,null,"RNNBX","Royal Hallamshire Hospital - RHQHH"]
[null,null,null,null,null,null,null,null,null,null,null,null,null,null,null,null,null,null,null,null,"QOQ","RWA","HULL UNIVERSITY TEACHING HOSPITALS NHS TRUST","RWA01","Hull Royal Infirmary - RWA01",null,null,null,null,null,null,"RNQ51","Royal Hampshire County Hospital - RN541"]
[null,null,null,null,null,null,null,null,null,null,null,null,null,null,null,null,null,null,null,null,"QOQ","RJL","NORTHERN LINCOLNSHIRE AND GOOLE NHS FOUNDATION TRUST","RJL30","Diana, Princess Of Wales Hospital - RJL30",null,null,null,null,null,null,"RNS01","Royal Lancaster Infirmary - RTX02"]
[null,null,null,null,null,null,null,null,null,null,null,null,null,null,null,null,null,null,null,null,"QOQ","RJL","NORTHERN LINCOLNSHIRE AND GOOLE NHS FOUNDATION TRUST","RJL32","Scunthorpe General Hospital - RJL32",null,null,null,null,null,null,"RNZ02","Royal Liverpool University Hospital - REMRQ"]
[null,null,null,null,null,null,null,null,null,null,null,null,null,null,null,null,null,null,null,null,"QOQ","RCB","YORK AND SCARBOROUGH TEACHING HOSPITALS NHS FOUNDATION TRUST","RCBCA","Scarborough General Hospital - RCBCA",null,null,null,null,null,null,"RP5BA","Royal Manchester Children's Hospital - R0A03"]
[null,null,null,null,null,null,null,null,null,null,null,null,null,null,null,null,null,null,null,null,"QOQ","RCB","YORK AND SCARBOROUGH TEACHING HOSPITALS NHS FOUNDATION TRUST","RCB55","York Hospital - RCB55",null,null,null,null,null,null,"RP5DR","Royal Preston Hospital - RXN02"]
[null,null,null,null,null,null,null,null,null,null,null,null,null,null,null,null,null,null,null,null,"QOX","RN3","GREAT WESTERN HOSPITALS NHS FOUNDATION TRUST","RN3TC","The Brunel NHS Treatment Centre - RN3TC",null,null,null,null,null,null,"RP5MM","Royal Shrewsbury Hospital - RXWAS"]
[null,null,null,null,null,null,null,null,null,null,null,null,null,null,null,null,null,null,null,null,"QOX","RN3","GREAT WESTERN HOSPITALS NHS FOUNDATION TRUST","RN325","The Great Western Hospital - RN325",null,null,null,null,null,null,"RP601","Royal Stoke University Hospital - RJE01"]
[null,null,null,null,null,null,null,null,null,null,null,null,null,null,null,null,null,null,null,null,"QOX","RD1","ROYAL UNITED HOSPITALS BATH NHS FOUNDATION TRUST","RD130","Royal United Hospital - RD130",null,null,null,null,null,null,"RPA02","Royal Sussex County Hospital - E0A3H"]
[null,null,null,null,null,null,null,null,null,null,null,null,null,null,null,null,null,null,null,null,"QOX","RNZ","SALISBURY NHS FOUNDATION TRUST","RNZ02","Salisbury District Hospital - RNZ02",null,null,null,null,null,null,"RPC","Royal United Hospital - RD130"]
[null,null,null,null,null,null,null,null,null,null,null,null,null,null,null,null,null,null,null,null,"QPM","RNQ","KETTERING GENERAL HOSPITAL NHS FOUNDATION TRUST","RNQ51","Kettering General Hospital - RNQ51",null,null,null,null,null,null,"RQ301","Russells Hall Hospital - RNA01"]
[null,null,null,null,null,null,null,null,null,null,null,null,null,null,null,null,null,null,null,null,"QPM","RNS","NORTHAMPTON GENERAL HOSPITAL NHS TRUST","RNS01","Northampton General Hospital (Acute) - RNS01",null,null,null,null,null,null,"RQM01","Salisbury District Hospital - RNZ02"]
[null,null,null,null,null,null,null,null,null,null,null,null,null,null,null,null,null,null,null,null,"QR1","RTE","GLOUCESTERSHIRE HOSPITALS NHS FOUNDATION TRUST","RTE01","Cheltenham General Hospital - RTE01",null,null,null,null,null,null,"RQM91","Samuel Johnson - RTG54"]
[null,null,null,null,null,null,null,null,null,null,null,null,null,null,null,null,null,null,null,null,"QR1","RTE","GLOUCESTERSHIRE HOSPITALS NHS FOUNDATION TRUST","RTE03","Gloucestershire Royal Hospital - RTE03",null,null,null,null,null,null,"RQMXXX","Sandwell General Hospital - RXK01"]
[null,null,null,null,null,null,null,null,null,null,null,null,null,null,null,null,null,null,null,null,"QRL","RN5","HAMPSHIRE HOSPITALS NHS FOUNDATION TRUST","RN542","Andover War Memorial Hospital - RN542",null,null,null,null,null,null,"RQWG0","Scarborough General Hospital - RCBCA"]
[null,null,null,null,null,null,null,null,null,null,null,null,null,null,null,null,null,null,null,null,"QRL","RN5","HAMPSHIRE HOSPITALS NHS FOUNDATION TRUST","RN506","Basingstoke and North Hampshire Hospital - RN506",null,null,null,null,null,null,"RQXM1","Scunthorpe General Hospital - RJL32"]
[null,null,null,null,null,null,null,null,null,null,null,null,null,null,null,null,null,null,null,null,"QRL","RN5","HAMPSHIRE HOSPITALS NHS FOUNDATION TRUST","RN541","Royal Hampshire County Hospital - RN541",null,null,null,null,null,null,"RR7EN","Sheffield Children's Hospital - RCUEF"]
[null,null,null,null,null,null,null,null,null,null,null,null,null,null,null,null,null,null,null,null,"QRL","R1F","ISLE OF WIGHT NHS TRUST","R1F01","St Mary's Hospital - R1F01",null,null,null,null,null,null,"RR7XXX","Sir Robert Peel - RTG50"]
[null,null,null,null,null,null,null,null,null,null,null,null,null,null,null,null,null,null,null,null,"QRL","RHU","PORTSMOUTH HOSPITALS UNIVERSITY NATIONAL HEALTH SERVICE TRUST","RHU03","Queen Alexandra Hospital - RHU03",null,null,null,null,null,null,"RR801","South Tyneside District Hospital - R0B0Q"]
[null,null,null,null,null,null,null,null,null,null,null,null,null,null,null,null,null,null,null,null,"QRL","RHU","PORTSMOUTH HOSPITALS UNIVERSITY NATIONAL HEALTH SERVICE TRUST","RHUXXX","WiC_MIU - RHUXXX",null,null,null,null,null,null,"RR813","Southampton General Hospital - RHM01"]
[null,null,null,null,null,null,null,null,null,null,null,null,null,null,null,null,null,null,null,null,"QRL","RHM","UNIVERSITY HOSPITAL SOUTHAMPTON NHS FOUNDATION TRUST","RHM01","Southampton General Hospital - RHM01",null,null,null,null,null,null,"RRF02","Southend Hospital - RAJ01"]
[null,null,null,null,null,null,null,null,null,null,null,null,null,null,null,null,null,null,null,null,"QRV","RQM","CHELSEA AND WESTMINSTER HOSPITAL NHS FOUNDATION TRUST","RQM01","Chelsea and Westminster Hospital - RQM01",null,null,null,null,null,null,"RRK15","Southmead Hospital - RVJ01"]
[null,null,null,null,null,null,null,null,null,null,null,null,null,null,null,null,null,null,null,null,"QRV","RQM","CHELSEA AND WESTMINSTER HOSPITAL NHS FOUNDATION TRUST","RQM91","West Middlesex University Hospital - RQM91",null,null,null,null,null,null,"RRK97","Southport and Formby District General Hospital - RVY01"]
[null,null,null,null,null,null,null,null,null,null,null,null,null,null,null,null,null,null,null,null,"QRV","RQM","CHELSEA AND WESTMINSTER HOSPITAL NHS FOUNDATION TRUST","RQMXXX","WiC_MIU - RQMXXX",null,null,null,null,null,null,"RRK98","St Bartholomew's Hospital - R1HM0"]
[null,null,null,null,null,null,null,null,null,null,null,null,null,null,null,null,null,null,null,null,"QRV","RYJ","IMPERIAL COLLEGE HEALTHCARE NHS TRUST","RYJ02","Charing Cross Hospital - RYJ02",null,null,null,null,null,null,"RRV03","St George's Hospital (Tooting) - RJ701"]
[null,null,null,null,null,null,null,null,null,null,null,null,null,null,null,null,null,null,null,null,"QRV","RYJ","IMPERIAL COLLEGE HEALTHCARE NHS TRUST","RYJ01","St Mary's Hospital (HQ) - RYJ01",null,null,null,null,null,null,"RTD02","St Helier Hospital - RVR05"]
[null,null,null,null,null,null,null,null,null,null,null,null,null,null,null,null,null,null,null,null,"QRV","RYJ","IMPERIAL COLLEGE HEALTHCARE NHS TRUST","RYJ07","Western Eye Hospital - RYJ07",null,null,null,null,null,null,"RTE01","St James's University Hospital - RR813"]
[null,null,null,null,null,null,null,null,null,null,null,null,null,null,null,null,null,null,null,null,"QRV","RYJ","IMPERIAL COLLEGE HEALTHCARE NHS TRUST","RYJXXX","WiC_MIU - RYJXXX",null,null,null,null,null,null,"RTE03","St Mary's Hospital - R1F01"]
[null,null,null,null,null,null,null,null,null,null,null,null,null,null,null,null,null,null,null,null,"QRV","R1K","LONDON NORTH WEST UNIVERSITY HEALTHCARE NHS TRUST","R1K04","Ealing Hospital - R1K04",null,null,null,null,null,null,"RTF86","St Mary's Hospital (HQ) - RYJ01"]
[null,null,null,null,null,null,null,null,null,null,null,null,null,null,null,null,null,null,null,null,"QRV","R1K","LONDON NORTH WEST UNIVERSITY HEALTHCARE NHS TRUST","R1K01","Northwick Park Hospital - R1K01",null,null,null,null,null,null,"RTFXXX","St Peter's Hospital - RTK01"]
[null,null,null,null,null,null,null,null,null,null,null,null,null,null,null,null,null,null,null,null,"QRV","RAS","THE HILLINGDON HOSPITALS NHS FOUNDATION TRUST","RAS01","Hillingdon Hospital - RAS01",null,null,null,null,null,null,"RTG02","St Richard's Hospital - RYR16"]
[null,null,null,null,null,null,null,null,null,null,null,null,null,null,null,null,null,null,null,null,"QRV","RAS","THE HILLINGDON HOSPITALS NHS FOUNDATION TRUST","RAS02","Mount Vernon Hospital Site - RAS02",null,null,null,null,null,null,"RTG50","St Thomas' Hospital - RJ122"]
[null,null,null,null,null,null,null,null,null,null,null,null,null,null,null,null,null,null,null,null,"QSL","RH5","SOMERSET NHS FOUNDATION TRUST","RH5A8","Musgrove Park Hospital - RH5A8",null,null,null,null,null,null,"RTG54","Stamford and Rutland Hospital - RGN49"]
[null,null,null,null,null,null,null,null,null,null,null,null,null,null,null,null,null,null,null,null,"QSL","RH5","SOMERSET NHS FOUNDATION TRUST","RH5XXX","Wic MIU - RH5XXX",null,null,null,null,null,null,"RTGFG","Stepping Hill Hospital - RWJ09"]
[null,null,null,null,null,null,null,null,null,null,null,null,null,null,null,null,null,null,null,null,"QSL","RA4","YEOVIL DISTRICT HOSPITAL NHS FOUNDATION TRUST","RA430","Yeovil District Hospital - RA430",null,null,null,null,null,null,"RTH05","Stoke Mandeville Hospital - RXQ02"]
[null,null,null,null,null,null,null,null,null,null,null,null,null,null,null,null,null,null,null,null,"QT1","RX1","NOTTINGHAM UNIVERSITY HOSPITALS NHS TRUST","RX1RA","Nottingham University Hospitals NHS Trust - Queen's Medical Centre Campus - RX1RA",null,null,null,null,null,null,"RTH08","Sunderland Eye Infirmary – R0B0X"]
[null,null,null,null,null,null,null,null,null,null,null,null,null,null,null,null,null,null,null,null,"QT1","RK5","SHERWOOD FOREST HOSPITALS NHS FOUNDATION TRUST","RK5BC","King's Mill Hospital - RK5BC",null,null,null,null,null,null,"RTK01","Sunderland Royal Hospital – R0B01"]
[null,null,null,null,null,null,null,null,null,null,null,null,null,null,null,null,null,null,null,null,"QT1","RK5","SHERWOOD FOREST HOSPITALS NHS FOUNDATION TRUST","RK5XXX","WiC_MIU - RK5XXX",null,null,null,null,null,null,"RTP04","Sussex Eye Hospital - X5M8P"]
[null,null,null,null,null,null,null,null,null,null,null,null,null,null,null,null,null,null,null,null,"QT6","REF","ROYAL CORNWALL HOSPITALS NHS TRUST","REF12","Royal Cornwall Hospital (Treliske) - REF12",null,null,null,null,null,null,"RTR45","Tameside General Hospital - RMP01"]
[null,null,null,null,null,null,null,null,null,null,null,null,null,null,null,null,null,null,null,null,"QT6","REF","ROYAL CORNWALL HOSPITALS NHS TRUST","REF01","West Cornwall Hospital (Penzance) - REF01",null,null,null,null,null,null,"RTRAT","The Brunel NHS Treatment Centre - RN3TC"]
[null,null,null,null,null,null,null,null,null,null,null,null,null,null,null,null,null,null,null,null,"QU9","RXQ","BUCKINGHAMSHIRE HEALTHCARE NHS TRUST","RXQ02","Stoke Mandeville Hospital - RXQ02",null,null,null,null,null,null,"RTRXXX","The Fryatt Hospital and Mayflower Medical Centre - RDEEE"]
[null,null,null,null,null,null,null,null,null,null,null,null,null,null,null,null,null,null,null,null,"QU9","RTH","OXFORD UNIVERSITY HOSPITALS NHS FOUNDATION TRUST","RTH05","Horton General Hospital - RTH05",null,null,null,null,null,null,"RTX02","The Great Western Hospital - RN325"]
[null,null,null,null,null,null,null,null,null,null,null,null,null,null,null,null,null,null,null,null,"QU9","RTH","OXFORD UNIVERSITY HOSPITALS NHS FOUNDATION TRUST","RTH08","John Radcliffe Hospital - RTH08",null,null,null,null,null,null,"RTXBU","The James Cook University Hospital - RTRAT"]
[null,null,null,null,null,null,null,null,null,null,null,null,null,null,null,null,null,null,null,null,"QU9","RHW","ROYAL BERKSHIRE NHS FOUNDATION TRUST","RHW03","King Edward Vii Hospital - RHW03",null,null,null,null,null,null,"RTXBW","The Northumbria - RTF86"]
[null,null,null,null,null,null,null,null,null,null,null,null,null,null,null,null,null,null,null,null,"QU9","RHW","ROYAL BERKSHIRE NHS FOUNDATION TRUST","RHW01","Royal Berkshire Hospital - RHW01",null,null,null,null,null,null,"RVJ01","The Princess Royal Hospital - RXWAT"]
[null,null,null,null,null,null,null,null,null,null,null,null,null,null,null,null,null,null,null,null,"QUA","RXK","SANDWELL AND WEST BIRMINGHAM HOSPITALS NHS TRUST","RXK03","Birmingham Midland Eye Centre (Bmec) - RXK03",null,null,null,null,null,null,"RVR05","The Queen Elizabeth Hospital - RCX70"]
[null,null,null,null,null,null,null,null,null,null,null,null,null,null,null,null,null,null,null,null,"QUA","RXK","SANDWELL AND WEST BIRMINGHAM HOSPITALS NHS TRUST","RXK02","City Hospital - RXK02",null,null,null,null,null,null,"RVR50","The Royal Alexandra Children's Hospital - G0W1C"]
[null,null,null,null,null,null,null,null,null,null,null,null,null,null,null,null,null,null,null,null,"QUA","RXK","SANDWELL AND WEST BIRMINGHAM HOSPITALS NHS TRUST","RXK01","Sandwell General Hospital - RXK01",null,null,null,null,null,null,"RVV09","The Royal London Hospital - R1H12"]
[null,null,null,null,null,null,null,null,null,null,null,null,null,null,null,null,null,null,null,null,"QUA","RNA","THE DUDLEY GROUP NHS FOUNDATION TRUST","RNA01","Russells Hall Hospital - RNA01",null,null,null,null,null,null,"RVVKC","The Royal Victoria Infirmary - RTD02"]
[null,null,null,null,null,null,null,null,null,null,null,null,null,null,null,null,null,null,null,null,"QUA","RL4","THE ROYAL WOLVERHAMPTON NHS TRUST","RL403","New Cross Hospital - RL403",null,null,null,null,null,null,"RVWAE","The Tunbridge Wells Hospital - RWFTW"]
[null,null,null,null,null,null,null,null,null,null,null,null,null,null,null,null,null,null,null,null,"QUA","RBK","WALSALL HEALTHCARE NHS TRUST","RBK02","Manor Hospital - RBK02",null,null,null,null,null,null,"RVY01","The Whittington Hospital - RKEQ4"]
[null,null,null,null,null,null,null,null,null,null,null,null,null,null,null,null,null,null,null,null,"QUE","RGN","NORTH WEST ANGLIA NHS FOUNDATION TRUST","RGN90","Hinchingbrooke Hospital - RGN90",null,null,null,null,null,null,"RVY02","Torbay Hospital - RA901"]
[null,null,null,null,null,null,null,null,null,null,null,null,null,null,null,null,null,null,null,null,"QUE","RGN","NORTH WEST ANGLIA NHS FOUNDATION TRUST","RGN80","Peterborough City Hospital - RGN80",null,null,null,null,null,null,"RWA01","Trafford General Hospital - R0A09"]
[null,null,null,null,null,null,null,null,null,null,null,null,null,null,null,null,null,null,null,null,"QUE","RGN","NORTH WEST ANGLIA NHS FOUNDATION TRUST","RGN49","Stamford and Rutland Hospital - RGN49",null,null,null,null,null,null,"RWDDA","University College Hospital - RRV03"]
[null,null,null,null,null,null,null,null,null,null,null,null,null,null,null,null,null,null,null,null,"QUY","RVJ","NORTH BRISTOL NHS TRUST","RVJ01","Southmead Hospital - RVJ01",null,null,null,null,null,null,"RWDLA","University Hospital Aintree - REM21"]
[null,null,null,null,null,null,null,null,null,null,null,null,null,null,null,null,null,null,null,null,"QUY","RA7","UNIVERSITY HOSPITALS BRISTOL AND WESTON NHS FOUNDATION TRUST","RA708","Bristol Eye Hospital - RA708",null,null,null,null,null,null,"RWDLP","University Hospital Lewisham - RJ224"]
[null,null,null,null,null,null,null,null,null,null,null,null,null,null,null,null,null,null,null,null,"QUY","RA7","UNIVERSITY HOSPITALS BRISTOL AND WESTON NHS FOUNDATION TRUST","RA723","Bristol Royal Hospital For Children - RA723",null,null,null,null,null,null,"RWEAA","University Hospital Of North Tees - RVWAE"]
[null,null,null,null,null,null,null,null,null,null,null,null,null,null,null,null,null,null,null,null,"QUY","RA7","UNIVERSITY HOSPITALS BRISTOL AND WESTON NHS FOUNDATION TRUST","RA701","Bristol Royal Infirmary - RA701",null,null,null,null,null,null,"RWF03","UTC-Colechester - RDE81"]
[null,null,null,null,null,null,null,null,null,null,null,null,null,null,null,null,null,null,null,null,"QUY","RA7","UNIVERSITY HOSPITALS BRISTOL AND WESTON NHS FOUNDATION TRUST","RA7C2","Weston General Hospital - RA7C2",null,null,null,null,null,null,"RWFTW","Warrington Hospital - RWWWH"]
[null,null,null,null,null,null,null,null,null,null,null,null,null,null,null,null,null,null,null,null,"QVV","RBD","DORSET COUNTY HOSPITAL NHS FOUNDATION TRUST","RBD01","Dorset County Hospital - RBD01",null,null,null,null,null,null,"RWFXXX","Warwick Hospital - RJC02"]
[null,null,null,null,null,null,null,null,null,null,null,null,null,null,null,null,null,null,null,null,"QVV","R0D","UNIVERSITY HOSPITALS DORSET NHS FOUNDATION TRUST","R0D01","Poole Hospital - R0D01",null,null,null,null,null,null,"RWG02","Watford General Hospital - RWG02"]
[null,null,null,null,null,null,null,null,null,null,null,null,null,null,null,null,null,null,null,null,"QVV","R0D","UNIVERSITY HOSPITALS DORSET NHS FOUNDATION TRUST","R0D02","Royal Bourenmouth Hospital - R0D02",null,null,null,null,null,null,"RWG08","West Cornwall Hospital (Penzance) - REF01"]
[null,null,null,null,null,null,null,null,null,null,null,null,null,null,null,null,null,null,null,null,"QWE","RVR","EPSOM AND ST HELIER UNIVERSITY HOSPITALS NHS TRUST","RVR50","Epsom Hospital - RVR50",null,null,null,null,null,null,"RWH01","West Cumberland Hospital - RNNBX"]
[null,null,null,null,null,null,null,null,null,null,null,null,null,null,null,null,null,null,null,null,"QWE","RVR","EPSOM AND ST HELIER UNIVERSITY HOSPITALS NHS TRUST","RVR05","St Helier Hospital - RVR05",null,null,null,null,null,null,"RWH20","West Middlesex University Hospital - RQM91"]
[null,null,null,null,null,null,null,null,null,null,null,null,null,null,null,null,null,null,null,null,"QWE","RAX","KINGSTON HOSPITAL NHS FOUNDATION TRUST","RAX01","Kingston Hospital - RAX01",null,null,null,null,null,null,"RWJ09","West Suffolk Hospital - RGR50"]
[null,null,null,null,null,null,null,null,null,null,null,null,null,null,null,null,null,null,null,null,"QWE","RAX","KINGSTON HOSPITAL NHS FOUNDATION TRUST","RAXXXX","WiC_MIU - RAXXXX",null,null,null,null,null,null,"RWP01","Western Eye Hospital - RYJ07"]
[null,null,null,null,null,null,null,null,null,null,null,null,null,null,null,null,null,null,null,null,"QWE","RJ7","ST GEORGE'S UNIVERSITY HOSPITALS NHS FOUNDATION TRUST","RJ701","St George's Hospital (Tooting) - RJ701",null,null,null,null,null,null,"RWP31","Westmorland General Hospital - RTXBW"]
[null,null,null,null,null,null,null,null,null,null,null,null,null,null,null,null,null,null,null,null,"QWO","RCF","AIREDALE NHS FOUNDATION TRUST","RCF22","Airedale General Hospital - RCF22",null,null,null,null,null,null,"RWP50","Weston General Hospital - RA7C2"]
[null,null,null,null,null,null,null,null,null,null,null,null,null,null,null,null,null,null,null,null,"QWO","RAE","BRADFORD TEACHING HOSPITALS NHS FOUNDATION TRUST","RAE01","Bradford Royal Infirmary - RAE01",null,null,null,null,null,null,"RWWHG","Wexham Park Hospital - RDU50"]
[null,null,null,null,null,null,null,null,null,null,null,null,null,null,null,null,null,null,null,null,"QWO","RWY","CALDERDALE AND HUDDERSFIELD NHS FOUNDATION TRUST","RWY02","Calderdale Royal Hospital - RWY02",null,null,null,null,null,null,"RWWWH","Whipps Cross University Hospital - R1HKH"]
[null,null,null,null,null,null,null,null,null,null,null,null,null,null,null,null,null,null,null,null,"QWO","RWY","CALDERDALE AND HUDDERSFIELD NHS FOUNDATION TRUST","RWY01","Huddersfield Royal Infirmary - RWY01",null,null,null,null,null,null,"RWY01","Whiston Hospital - RBN01"]
[null,null,null,null,null,null,null,null,null,null,null,null,null,null,null,null,null,null,null,null,"QWO","RR8","LEEDS TEACHING HOSPITALS NHS TRUST","RR801","Leeds General Infirmary - RR801",null,null,null,null,null,null,"RWY02","Wic MIU - RH5XXX"]
[null,null,null,null,null,null,null,null,null,null,null,null,null,null,null,null,null,null,null,null,"QWO","RR8","LEEDS TEACHING HOSPITALS NHS TRUST","RR813","St James's University Hospital - RR813",null,null,null,null,null,null,"RX1RA","WiC_MIU - R1HXXX"]
[null,null,null,null,null,null,null,null,null,null,null,null,null,null,null,null,null,null,null,null,"QWO","RXF","MID YORKSHIRE HOSPITALS NHS TRUST","RXF10","Dewsbury and District Hospital - RXF10",null,null,null,null,null,null,"RXC01","WiC_MIU - RAXXXX"]
[null,null,null,null,null,null,null,null,null,null,null,null,null,null,null,null,null,null,null,null,"QWO","RXF","MID YORKSHIRE HOSPITALS NHS TRUST","RXF05","Pinderfields General Hospital - RXF05",null,null,null,null,null,null,"RXC02","WiC_MIU - RBTXXX"]
[null,null,null,null,null,null,null,null,null,null,null,null,null,null,null,null,null,null,null,null,"QWO","RXF","MID YORKSHIRE HOSPITALS NHS TRUST","RXF03","Pontefract General Infirmary - RXF03",null,null,null,null,null,null,"RXF03","WiC_MIU - RCDXXX"]
[null,null,null,null,null,null,null,null,null,null,null,null,null,null,null,null,null,null,null,null,"QWU","RLT","GEORGE ELIOT HOSPITAL NHS TRUST","RLT01","George Eliot Hospital - Acute Services - RLT01",null,null,null,null,null,null,"RXF05","WiC_MIU - RH8XXX"]
[null,null,null,null,null,null,null,null,null,null,null,null,null,null,null,null,null,null,null,null,"QWU","RJC","SOUTH WARWICKSHIRE NHS FOUNDATION TRUST","RJC02","Warwick Hospital - RJC02",null,null,null,null,null,null,"RXF10","WiC_MIU - RHQXXX"]
[null,null,null,null,null,null,null,null,null,null,null,null,null,null,null,null,null,null,null,null,"QWU","RKB","UNIVERSITY HOSPITALS COVENTRY AND WARWICKSHIRE NHS TRUST","RKB02","Coventry and Warwickshire Hospital - RKB02",null,null,null,null,null,null,"RXK01","WiC_MIU - RHUXXX"]
[null,null,null,null,null,null,null,null,null,null,null,null,null,null,null,null,null,null,null,null,"QWU","RKB","UNIVERSITY HOSPITALS COVENTRY AND WARWICKSHIRE NHS TRUST","RKB03","Hospital Of St Cross - RKB03",null,null,null,null,null,null,"RXK02","WiC_MIU - RJ1XXX"]
[null,null,null,null,null,null,null,null,null,null,null,null,null,null,null,null,null,null,null,null,"QWU","RKB","UNIVERSITY HOSPITALS COVENTRY AND WARWICKSHIRE NHS TRUST","RKBXXX","WiC_MIU - RKBXXX",null,null,null,null,null,null,"RXK03","WiC_MIU - RJEXXX"]
[null,null,null,null,null,null,null,null,null,null,null,null,null,null,null,null,null,null,null,null,"QXU","RTK","ASHFORD AND ST PETER'S HOSPITALS NHS FOUNDATION TRUST","RTK01","St Peter's Hospital - RTK01",null,null,null,null,null,null,"RXL01","WiC_MIU - RK5XXX"]
[null,null,null,null,null,null,null,null,null,null,null,null,null,null,null,null,null,null,null,null,"QXU","RTP","SURREY AND SUSSEX HEALTHCARE NHS TRUST","RTP04","East Surrey Hospital - RTP04",null,null,null,null,null,null,"RXN01","WiC_MIU - RK9XXX"]
[null,null,null,null,null,null,null,null,null,null,null,null,null,null,null,null,null,null,null,null,"QYG","RBS","ALDER HEY CHILDREN'S NHS FOUNDATION TRUST","RBS25","Alder Hey Children's NHS - RBS25",null,null,null,null,null,null,"RXN02","WiC_MIU - RKBXXX"]
[null,null,null,null,null,null,null,null,null,null,null,null,null,null,null,null,null,null,null,null,"QYG","RJN","EAST CHESHIRE NHS TRUST","RJN71","Macclesfield District General Hospital - RJN71",null,null,null,null,null,null,"RXPXXX","WiC_MIU - RQMXXX"]
[null,null,null,null,null,null,null,null,null,null,null,null,null,null,null,null,null,null,null,null,"QYG","REM","LIVERPOOL UNIVERSITY HOSPITALS NHS FOUNDATION TRUST","REMRQ","Royal Liverpool University Hospital - REMRQ",null,null,null,null,null,null,"RXQ02","WiC_MIU - RR7XXX"]
[null,null,null,null,null,null,null,null,null,null,null,null,null,null,null,null,null,null,null,null,"QYG","REM","LIVERPOOL UNIVERSITY HOSPITALS NHS FOUNDATION TRUST","REM21","University Hospital Aintree - REM21",null,null,null,null,null,null,"RXR20","WiC_MIU - RTFXXX"]
[null,null,null,null,null,null,null,null,null,null,null,null,null,null,null,null,null,null,null,null,"QYG","REP","LIVERPOOL WOMEN'S NHS FOUNDATION TRUST","REP01","Liverpool Womens Hospital - REP01",null,null,null,null,null,null,"RXWAS","WiC_MIU - RTRXXX"]
[null,null,null,null,null,null,null,null,null,null,null,null,null,null,null,null,null,null,null,null,"QYG","RBT","MID CHESHIRE HOSPITALS NHS FOUNDATION TRUST","RBT20","Leighton Hospital - RBT20",null,null,null,null,null,null,"RXWAT","WiC_MIU - RWFXXX"]
[null,null,null,null,null,null,null,null,null,null,null,null,null,null,null,null,null,null,null,null,"QYG","RBT","MID CHESHIRE HOSPITALS NHS FOUNDATION TRUST","RBTXXX","WiC_MIU - RBTXXX",null,null,null,null,null,null,"RYJ01","WiC_MIU - RXPXXX"]
[null,null,null,null,null,null,null,null,null,null,null,null,null,null,null,null,null,null,null,null,"QYG","RVY","SOUTHPORT AND ORMSKIRK HOSPITAL NHS TRUST","RVY02","Ormskirk and District General Hospital - RVY02",null,null,null,null,null,null,"RYJ02","WiC_MIU - RYJXXX"]
[null,null,null,null,null,null,null,null,null,null,null,null,null,null,null,null,null,null,null,null,"QYG","RVY","SOUTHPORT AND ORMSKIRK HOSPITAL NHS TRUST","RVY01","Southport and Formby District General Hospital - RVY01",null,null,null,null,null,null,"RYJ07","Worcestershire Royal Hospital - RWP50"]
[null,null,null,null,null,null,null,null,null,null,null,null,null,null,null,null,null,null,null,null,"QYG","RBN","ST HELENS AND KNOWSLEY TEACHING HOSPITALS NHS TRUST","RBN01","Whiston Hospital - RBN01",null,null,null,null,null,null,"RYJXXX","Worthing Hospital - RYR18"]
[null,null,null,null,null,null,null,null,null,null,null,null,null,null,null,null,null,null,null,null,"QYG","RWW","WARRINGTON AND HALTON TEACHING HOSPITALS NHS FOUNDATION TRUST","RWWHG","Halton Hospital - RWWHG",null,null,null,null,null,null,"RYR16","Wythenshawe Hospital - R0A07"]
[null,null,null,null,null,null,null,null,null,null,null,null,null,null,null,null,null,null,null,null,"QYG","RWW","WARRINGTON AND HALTON TEACHING HOSPITALS NHS FOUNDATION TRUST","RWWWH","Warrington Hospital - RWWWH",null,null,null,null,null,null,"RYR18","Yeovil District Hospital - RA430"]
[null,null,null,null,null,null,null,null,null,null,null,null,null,null,null,null,null,null,null,null,"QYG","RBL","WIRRAL UNIVERSITY TEACHING HOSPITAL NHS FOUNDATION TRUST","RBL14","Arrowe Park Hospital - RBL14",null,null,null,null,null,null,"X5M8P","York Hospital - RCB55"]